Workbook

Sheet PFP
A1: PROPOSTA FINANCEIRA DO PROJETO | K1: CODIGO:
K2: PFP
A3: NOME DA CONSULTORA:
A5: PROJETO: | G5: CONTRATANTE: | K5: BASE:
A6: Contratação para Elaboração de Estudos Básicos, Estudos de Viabilidade Técnica, Econômica e Ambiental (EVTEA), e Consolidação do Anteprojeto de Engenharia para Atividades de Irrigação em uma área total estimada de 8.500 hectares, ao longo das margens do Riacho Pontal, situado no município de Petrolina-PE. | G6: CODEVASF (SEDE) | K6: 2024-10-01
A7: Base | B7: Cod2 | C7: Cod3 | D7: Código | E7: Categoria / Insumo | F7: Uni | G7: Qde | H7: CUD | I7: PU | J7: FatorK | K7: CT | L7: PT | M7: Encargos COMP E ADICIONAIS
A8: SICRO | B8: MO3 | C8: P0 | D8: P8061 | E8: Engenheiro coordenador (P8061) | F8: mês | G8: ='CRO1_Ins-Pro'!D5 -> 3 | H8: =VLOOKUP(D8,'MDO DNIT-jul2024'!A:Z,4,0) -> 18189.93 | I8: =ROUND(J8*H8,2) -> 23716.03 | J8: ='PFP2.3_FatorKc'!E35 -> 1.3038 | K8: =ROUND(G8*H8,2) -> 54569.79 | L8: =ROUND(G8*I8,2) -> 71148.09 | M8: =VLOOKUP(D8,'MDO DNIT-jul2024'!A:Z,26,0) -> 1069.49
A9: SICRO | B9: MO2 | C9: P1 | D9: P8067 | E9: Engenheiro sênior (P8067) | F9: mês | G9: ='CRO1_Ins-Pro'!D6 -> 8.25 | H9: =VLOOKUP(D9,'MDO DNIT-jul2024'!A:Z,4,0) -> 15877.29 | I9: 24562.17 | J9: ='PFP2.2_FatorKb'!$E$35 -> 1.547 | K9: 130987.64 | L9: 202637.9 | M9: =VLOOKUP(D9,'MDO DNIT-jul2024'!A:Z,26,0) -> 1071.71
A10: SICRO | B10: MO1 | C10: P2 | D10: P8066 | E10: Engenheiro pleno (P8066) | F10: mês | G10: ='CRO1_Ins-Pro'!D7 -> 11.75 | H10: =VLOOKUP(D10,'MDO DNIT-jul2024'!A:Z,4,0) -> 12629.6 | I10: =ROUND(J10*H10,2) -> 27215.53 | J10: ='PFP2.1_FatorKa'!$E$35 -> 2.1549 | K10: =ROUND(G10*H10,2) -> 148397.8 | L10: 319782.48 | M10: =VLOOKUP(D10,'MDO DNIT-jul2024'!A:Z,26,0) -> 1071.71
A11: SICRO | B11: MO1 | C11: P3 | D11: P8065 | E11: Engenheiro júnior (P8065) | F11: mês | G11: ='CRO1_Ins-Pro'!D8 -> 18.75 | H11: =VLOOKUP(D11,'MDO DNIT-jul2024'!A:Z,4,0) -> 12002 | I11: =ROUND(J11*H11,2) -> 25863.11 | J11: ='PFP2.1_FatorKa'!$E$35 -> 2.1549 | K11: =ROUND(G11*H11,2) -> 225037.5 | L11: 484933.31 | M11: =VLOOKUP(D11,'MDO DNIT-jul2024'!A:Z,26,0) -> 1071.7
A12: SICRO | C12: P1 | D12: P8046 | E12: Economista Pleno (P8046) | F12: mês | G12: ='CRO1_Ins-Pro'!D9 -> 4 | H12: =VLOOKUP(D12,'MDO DNIT-jul2024'!A:Z,4,0) -> 6333.46 | I12: =ROUND(J12*H12,2) -> 13647.97 | J12: ='PFP2.1_FatorKa'!$E$35 -> 2.1549 | K12: =ROUND(G12*H12,2) -> 25333.84 | L12: =ROUND(G12*I12,2) -> 54591.88 | M12: =VLOOKUP(D12,'MDO DNIT-jul2024'!A:Z,26,0) -> 1044.1
A13: SICRO | C13: P1 | D13: P8002 | E13: Advogado Pleno (P8002) | F13: mês | G13: ='CRO1_Ins-Pro'!D10 -> 1 | H13: =VLOOKUP(D13,'MDO DNIT-jul2024'!A:Z,4,0) -> 6155.17 | I13: =ROUND(J13*H13,2) -> 13263.78 | J13: ='PFP2.1_FatorKa'!$E$35 -> 2.1549 | K13: =ROUND(G13*H13,2) -> 6155.17 | L13: 13263.78 | M13: =VLOOKUP(D13,'MDO DNIT-jul2024'!A:Z,26,0) -> 1070.67
A14: SICRO | D14: P8020 | E14: Assistente Social (pleno) | F14: mês | G14: ='CRO1_Ins-Pro'!D11 -> 7 | H14: =VLOOKUP(D14,'MDO DNIT-jul2024'!A:Z,4,0) -> 4353.21 | I14: =ROUND(J14*H14,2) -> 9380.73 | J14: ='PFP2.1_FatorKa'!$E$35 -> 2.1549 | K14: 30472.47 | L14: 65665.11 | M14: =VLOOKUP(D14,'MDO DNIT-jul2024'!A:Z,26,0) -> 1072.01
A15: SICRO | B15: MO1 | D15: P8019 | E15: Técnico em Ação Social (assistente social junior) | F15: mês | G15: ='CRO1_Ins-Pro'!D12 -> 14 | H15: =VLOOKUP(D15,'MDO DNIT-jul2024'!A:Z,4,0) -> 3264.91 | I15: 7035.55 | J15: ='PFP2.1_FatorKa'!$E$35 -> 2.1549 | K15: 45708.74 | L15: 98497.7 | M15: =VLOOKUP(D15,'MDO DNIT-jul2024'!A:Z,26,0) -> 1095.15
A16: SICRO | B16: MO1 | C16: T1 | D16: P8147 | E16: Técnico de projetos/obra (P8147) | F16: mês | G16: ='CRO1_Ins-Pro'!D13 -> 17 | H16: =VLOOKUP(D16,'MDO DNIT-jul2024'!A:Z,4,0) -> 3184.9 | I16: 6863.14 | J16: ='PFP2.1_FatorKa'!$E$35 -> 2.1549 | K16: 54143.3 | L16: 116673.38 | M16: =VLOOKUP(D16,'MDO DNIT-jul2024'!A:Z,26,0) -> 1102.53
A17: SINAPI | B17: MO1 | C17: D | D17: 40807 | E17: Desenhista (40807) ** | F17: mês | G17: ='CRO1_Ins-Pro'!D14 -> 7.5 | H17: 3886.55 | I17: 4725.27 | J17: =PFP3_FatorKd!$E$17 -> 1.2158 | K17: 29149.13 | L17: 35439.53 | M17: =M18 -> 1103.26
A18: SICRO | B18: MO1 | C18: A1 | D18: P8135 | E18: Secretária (P8135) | F18: mês | G18: ='CRO1_Ins-Pro'!D15 -> 3.75 | H18: =VLOOKUP(D18,'MDO DNIT-jul2024'!A:Z,4,0) -> 2697.38 | I18: =ROUND(J18*H18,2) -> 5812.58 | J18: ='PFP2.1_FatorKa'!$E$35 -> 2.1549 | K18: =ROUND(G18*H18,2) -> 10115.18 | L18: =ROUND(G18*I18,2) -> 21797.18 | M18: =VLOOKUP(D18,'MDO DNIT-jul2024'!A:Z,26,0) -> 1103.26
A19: SICRO | B19: EC | C19: ECA | E19: Encargos Comp. e Adicionais | F19: mês | G19: ='CRO1_Ins-Pro'!D16 -> 96 | H19: =AVERAGE(M8:M18) -> 1079.599091 | I19: 1312.58 | J19: =PFP3_FatorKd!$E$17 -> 1.2158 | K19: =ROUND(G19*H19,2) -> 103641.51 | L19: =ROUND(G19*I19,2) -> 126007.68
A20: PROP | B20: EC | C20: AT2 | E20: Auxilio Transporte Técnicos | F20: mês | G20: ='CRO1_Ins-Pro'!D17 -> 17 | H20: Já incluso* | I20: 0 | J20: =PFP3_FatorKd!$E$17 -> 1.2158 | K20: 0 | L20: =ROUND(G20*I20,2) -> 0 | M20: OBSERVAÇÃO:
A21: PROP | B21: EC | C21: AT3 | E21: Auxilio Transporte Secretária | F21: mês | G21: ='CRO1_Ins-Pro'!D18 -> 3.75 | H21: Já Incluso* | I21: 0 | J21: =PFP3_FatorKd!$E$17 -> 1.2158 | K21: 0 | L21: 0 | M21: ** A mão de obra do Sinapi já possui encargos sociais, por isso deve se usar o "fator K" sem encargos
A22: CODE | B22: EM | C22: M1 | E22: Relatório Parcial | F22: un | G22: ='CRO1_Ins-Pro'!D19 -> 0 | H22: ='Serv Graficos'!E33 -> 51.3 | I22: 62.37 | J22: =PFP3_FatorKd!$E$17 -> 1.2158 | K22: 0 | L22: =ROUND(G22*I22,2) -> 0
A23: CODE | B23: EM | C23: M2 | E23: Relatório Final | F23: un | G23: ='CRO1_Ins-Pro'!D20 -> 3 | H23: ='Serv Graficos'!E35 -> 1502.05 | I23: 1826.19 | J23: =PFP3_FatorKd!$E$17 -> 1.2158 | K23: 4506.15 | L23: 5478.57
A24: CODE | B24: SU | C24: TOP | E24: Total Serviços Cartográficos | F24: un | G24: ='CRO1_Ins-Pro'!D21 -> 1 | H24: - | I24: ='PFP1.1_Topo'!J20 -> 154337.2216 | J24: - | K24: - | L24: 154337.22
A25: CODE | B25: SU | C25: GEO | E25: Total Serviços Geotécnicos | F25: un | G25: ='CRO1_Ins-Pro'!D22 -> 1 | H25: - | I25: ='PFP1.2_Geo'!I28 -> 225909.1087 | J25: - | K25: - | L25: 225909.11
A26: CODE | B26: SU | C26: PED | E26: Total Serviços Pedológicos | F26: un | G26: ='CRO1_Ins-Pro'!D24 -> 1 | H26: - | I26: ='PFP1.4_Pedo'!J16 -> 563602.9707 | L26: 563602.97
A27: CODE | B27: SU | C27: GEO | E27: Total Equipamento para Ambiental | F27: mês | G27: 1 | H27: ='PFP1.3_Ger'!G17 -> 2884.47 | I27: =ROUND(J27*H27,2) -> 3506.94 | J27: =PFP3_FatorKd!$E$17 -> 1.2158 | K27: =ROUND(G27*H27,2) -> 2884.47 | L27: =ROUND(G27*I27,2) -> 3506.94
A28: CODE | B28: SU | C28: GEO | E28: Total Recursos Gerais | F28: un | G28: ='CRO1_Ins-Pro'!D25 -> 1 | H28: ='PFP1.3_Ger'!G15 -> 102495.6012 | I28: 124614.15 | J28: =PFP3_FatorKd!$E$17 -> 1.2158 | K28: =ROUND(G28*H28,2) -> 102495.6 | L28: 124614.15
A29: TOTAL DOS CUSTOS DIRETOS | I29: =SUM(K8:K28) -> 973598.29
A30: TOTAL DOS ENCARGOS E DISPESAS DIVERSAS | I30: =I31-I29 -> 642318.3
A31: TOTAL DA PROPOSTA A PREÇO GLOBAL | I31: =SUM(L8:L23) -> 1615916.59
A32: TOTAL DA PROPOSTA A PREÇO UNITÁRIO | I32: =SUM(L24:L28) -> 1071970.39
A33: TOTAL DA PROPOSTA | I33: =I31+I32 -> 2687886.98
A34: OBSERVAÇÃO:
A35: *Encargos Complementares e adicionais já incluem auxílio transporte
A36: Alocar os Insumos MO, com respectivo FatorK, dentro da categoria de vínculo contratual (celetista, autonomo, societario)
A37: Uni - unidade de medição do insumo;
A38: Qde - Quantidade do Insumo (não pode ocorrer alteração pela Licitante)
A39: CUD - Custo Unitário Direto do Insumo (sem encargos, taxas e impostos, valor não pode ser maior que o Orçado pela Codevasf)
A40: CT - Custo Total (sem encargos, taxas e impostos) - CT = Qde x CUD
A41: FatorK - Taxa de Ressarcimento de Despesas e Encargos (detalhar composição nas Planilhas "PFP2.1", "PFP2.2", "PFP3")
A42: PU - Preço Unitário do Insumo (incluído encargos, taxas e impostos) - PU = CUD x FatorK
A43: PT - Preço Total do Insumo (incluído encargos, taxas e impostos) - PT = Qde x PU
A44: P - Profissionais nível superior nas áreas de Engenharia, Química, Arquitetura, Agronomia e Veterinária, conforme disposições da Lei 4.950-A/66
A45: S - Profissionais de nível superior nas demais áreas de atuação, incluindo Arqueólogo, Biólogo, Geógrafo e Sociólogo
A46: T - Profissionais de nível médio técnico nas diversas áreas de atuação
A47: A - Profissionais de nível médio de apoio técnico-administrativo

Sheet PFP1.1_Topo
A1: SERVIÇOS TOPOGRÁFICOS/CARTOGRÁFICOS | J1: CODIGO:
J2: PFP-1.1
A3: NOME DA EMPRESA:
L4: MEMÓRIA DE CALCULO DO BDI DE FORNECIMENTO
A5: PROJETO: | G5: CONTRATANTE: | J5: =PFP!K5 -> BASE: | L5: ITEM | M5: DISCRIMINAÇÃO | N5: PERC. (%)
A6: =PFP!A6 -> Contratação para Elaboração de Estudos Básicos, Estudos de Viabilidade Técnica, Econômica e Ambiental (EVTEA), e Consolidação do Anteprojeto de Engenharia para Atividades de Irrigação em uma área total estimada de 8.500 hectares, ao longo das margens do Riacho Pontal, situado no município de Petrolina-PE. | G6: CODEVASF (SEDE) | J6: =PFP!K6 -> 2024-10-01
A7: Cod. | B7: Base | C7: Referência | D7: Código | E7: Insumos | F7: Uni | G7: Qde | H7: Custo Unitário (CU) | I7: Custo Total | J7: Preço Total (PT)
A8: TP01 | B8: CODE | C8: CODE | D8: CODE | E8: Nivelamento Geométrico dos Eixos classe IIN | F8: km | G8: 8 | H8: 615.56 | I8: =ROUND(G8*H8,2) -> 4924.48 | J8: =(I8*$N$25)+I8 -> 5647.985202 | L8: 1.00 | M8: Despesas Indiretas
A9: TP02 | B9: CODE | C9: ORSE/COMPOSIÇÃO | D9: 9164 | E9: Seções Tranversais | F9: km | G9: 4 | H9: =4.67*1000 -> 4670 | I9: =ROUND(G9*H9,2) -> 18680 | J9: =(I9*$N$25)+I9 -> 21424.46788 | L9: A1 | M9: Seguro e Garantia | N9: 0.008
A10: TP03 | B10: CODE | C10: EMOP/COMPOSIÇÃO | D10: 01.016.0035-0 | E10: Poligonal Classe IIP | F10: km | G10: 8 | H10: 1366.27 | I10: 10930.16 | J10: 12536.02044 | L10: A2 | M10: Riscos e Imprevistos | N10: 0.0115
A11: TP04 | B11: CODE | C11: CPOS/CDHU/COMPOSIÇÃO | D11: 01.20.921 | E11: Pontos GPS de dupla frequencia (L1/L2) | F11: un | G11: 20 | H11: 1264.14 | I11: 25282.8 | J11: 28997.35206 | L11: A3 | M11: Despesas Financeiras | N11: 0.0105
A12: TP05 | B12: CODE | C12: CODE | D12: CODE | E12: Cadastro Físico | F12: ha | G12: 2500 | H12: 12.91155517 | I12: 32278.89 | J12: 37021.30846 | L12: A4 | M12: Administração Central | N12: 0.022
A13: TP06 | B13: CODE | C13: CODE | D13: CODE | E13: Cadastro Agrícola | F13: ha | G13: =G12 -> 2500 | H13: 4.303851724 | I13: 10759.63 | J13: 12340.43615 | L13: Total do Grupo A = | N13: =SUM(N9:N12) -> 0.052
A14: TP07 | B14: CODE | C14: CODE | D14: CODE | E14: Cadastro Jurídico | F14: ha | G14: =G13 -> 2500 | H14: 8.607703448 | I14: 21519.26 | J14: 24680.8723 | L14: 2.00 | M14: Benefício
A15: TP08 | B15: CODE | C15: CODE | D15: CODE | E15: Cadastro Socioeconomico | F15: ha | G15: 2500 | H15: 2.869234483 | I15: 7173.09 | J15: 8226.961258 | L15: B1 | M15: LUCRO | N15: 0.05
A16: TP10 | B16: CODE | C16: ORSE/INSUMO | D16: 4369 | E16: Marco de Concreto (12x18x60cm) | F16: un | G16: =G11 -> 20 | H16: 73 | I16: 1460 | J16: 1674.503378 | L16: Total do Grupo B = | N16: =N15 -> 0.05
A17: TP11 | B17: CODE | C17: SBC/INSUMO | D17: 5238 | E17: Barrote de Madeira (10x10x50cm) | F17: un | G17: 20 | H17: 30.03 | I17: 600.6 | J17: 688.8402252 | L17: 3.00 | M17: Impostos
A18: TP12 | B18: CODE | C18: SEINFRA/INSUMO | D18: I1652 | E18: Piquetes de Madeira (2x2x20cm) | F18: un | G18: 200 | H18: 2.08 | I18: 416 | J18: 477.1187707 | L18: C1 | M18: PIS / PASEP | N18: 0.0065
A19: TP13 | B19: CODE | D19: CODE | E19: Picada Manual p/ levantamento TP | F19: km | G19: 2 | H19: ='PFP1.4_Pedo'!H14 -> 270.88 | I19: 541.76 | J19: 621.3554453 | L19: C2 | M19: COFINS | N19: 0.03
A20: TOTAL SERVIÇOS TOPOGRÁFICOS | J20: =SUM(J8:J19) -> 154337.2216 | L20: C3 | M20: ISS | N20: 0
A21: OBSERVAÇÃO: | L21: Total do Grupo C = | N21: =SUM(N18:N20) -> 0.0365
A22: Uni - unidade de medição do insumo; | L22: Fórmula Para Cálculo do B.D.I
A23: Qde - Quantidade do Insumo (não pode ocorrer alteração pela Licitante) | L23: BDI =(((1+A4+A1+A2)*(1+A3)*(1+B))/(1-C))-1
A24: PU - Preço Unitário (composições padrão da Codevasf, já incluso o FatorK)
A25: PT - Preço Total (incluído encargos, taxas e impostos) - PT = Qde x PU | L25: Bonificação Sobre Despesas indiretas (B.D.I) = | N25: =(((1+N12+N9+N10)*(1+N11)*(1+N16))/(1-N21))-1 -> 0.146920122

Sheet PFP1.2_Geo
A1: SERVIÇOS GEOLÓGICOS/GEOTÉCNICOS | I1: CODIGO:
I2: PFP-1.2
A3: NOME DA EMPRESA:
A5: PROJETO: | F5: CONTRATANTE: | I5: =PFP!K5 -> BASE:
A6: =PFP!A6 -> Contratação para Elaboração de Estudos Básicos, Estudos de Viabilidade Técnica, Econômica e Ambiental (EVTEA), e Consolidação do Anteprojeto de Engenharia para Atividades de Irrigação em uma área total estimada de 8.500 hectares, ao longo das margens do Riacho Pontal, situado no município de Petrolina-PE. | F6: CODEVASF (SEDE) | I6: =PFP!K6 -> 2024-10-01
A7: Cod. | B7: Código | C7: Referência | D7: Insumos | E7: Uni | F7: Qde | G7: Custo Unitário (CU) | H7: Custo Total | I7: Preço Total (PT) | K7: MEMÓRIA DE CALCULO DO BDI DE FORNECIMENTO
A8: GT 1 | D8: Sondagem mista | K8: ITEM | L8: DISCRIMINAÇÃO | M8: PERC. (%)
A9: GT1.1 | B9: E200320516 | C9: EMBASA/INSUMO | D9: Sondagem Mista: (Des)Mobilização por equipe | E9: un | F9: 2 | G9: 3157.33 | H9: =ROUND(G9*F9,2) -> 6314.66 | I9: =(H9*$M$28)+H9 -> 7242.410617
A10: GT1.2 | B10: C0333 | C10: SEINFRA/COMPOSIÇÃO | D10: Sondagem Mista: em rochas | E10: m | F10: 60 | G10: 1251.98 | H10: =ROUND(G10*F10,2) -> 75118.8 | I10: =(H10*$M$28)+H10 -> 86155.26326
A11: GT 2 | D11: Sondagem a Percussão SPT | K11: 1.00 | L11: Despesas Indiretas
A12: GT2.1 | B12: A.07.000.020476 | C12: CPOS/INSUMO | D12: Sondagem Percussão: (Des)Mobilização por equipe | E12: un | F12: 2 | G12: 1266.23 | H12: =ROUND(G12*F12,2) -> 2532.46 | I12: =(H12*$M$28)+H12 -> 2904.529332 | K12: A1 | L12: Seguro e Garantia | M12: 0.008
A13: GT2.2 | B13: CO-28388 | C13: SETOP/COMPOSIÇÃO | D13: Sondagem Percursão: com SPT - Terrestre | E13: m | F13: 180 | G13: 72.5 | H13: 13050 | I13: 14967.30759 | K13: A2 | L13: Riscos e Imprevistos | M13: 0.0115
A14: GT3 | C14: CODE | D14: Poços de Inspeção com retroescavadeira | E14: m | F14: 180 | G14: 202.54 | H14: 36457.2 | I14: 41813.49627 | K14: A3 | L14: Despesas Financeiras | M14: 0.0105
A15: GT4 | B15: 32.01.01 | C15: EMBASA/COMPOSIÇÃO | D15: Sondagem a Trado | E15: m | F15: 50 | G15: 97.5 | H15: 4875 | I15: 5591.235595 | K15: A4 | L15: Administração Central | M15: 0.022
A16: GT5. | D16: Ensaios de solo | K16: Total do Grupo A = | M16: =SUM(M12:M15) -> 0.052
A17: GT5.1 | B17: ED-49553 | C17: SETOP/COMPOSIÇÃO | D17: Ensaio: Limite de Liquidez | E17: un | F17: 60 | G17: 79.81 | H17: =ROUND(G17*F17,2) -> 4788.6 | I17: =(H17*$M$28)+H17 -> 5492.141696 | K17: 2.00 | L17: Benefício
A18: GT5.2 | B18: ED-49554 | C18: SETOP/COMPOSIÇÃO | D18: Ensaio: Limite de Plasticidade | E18: un | F18: 60 | G18: 79.82 | H18: 4789.2 | I18: 5492.829848 | K18: B1 | L18: LUCRO | M18: 0.05
A19: GT5.3 | B19: ED-49552 | C19: SETOP/COMPOSIÇÃO | D19: Ensaio: Granulometria por Peneiramento | E19: un | F19: 65 | G19: 150.69 | H19: 9794.85 | I19: 11233.91056 | K19: Total do Grupo B = | M19: =M18 -> 0.05
A20: GT5.4 | B20: 01.07.07U | C20: COMPESA/COMPOSIÇÃO | D20: Ensaio: Granulometria por Sedimentação | E20: un | F20: 60 | G20: 138.12 | H20: 8287.2 | I20: 9504.756435 | K20: 3.00 | L20: Impostos
A21: GT5.5 | B21: 4685 | C21: ORSE/COMPOSIÇÃO | D21: Ensaio: Compactação Proctor Normal | E21: un | F21: 60 | G21: 220 | H21: 13200 | I21: 15139.34561 | K21: C1 | L21: PIS / PASEP | M21: 0.0065
A22: GT5.6 | B22: 34.01.16 | C22: EMBASA/COMPOSIÇÃO | D22: Ensaio: Massa Especifica Real dos Grãos | E22: un | F22: 60 | G22: 65.78 | H22: 3946.8 | I22: 4526.664337 | K22: C2 | L22: COFINS | M22: 0.03
A23: GT5.7 | B23: 01.001.0210-A | C23: EMOP/COMPOSIÇÃO | D23: Ensaio: Massa Específica Aparente "in situ" | E23: un | F23: 60 | G23: 109.48 | H23: 6568.8 | I23: 7533.888897 | K23: C3 | L23: ISS | M23: 0
A24: GT6. | D24: Análise da Areia | K24: Total do Grupo C = | M24: =SUM(M21:M23) -> 0.0365
A25: GT6.1 | C25: CODE | D25: Ensaio: Mineralogia da Areia | E25: un | F25: 5 | G25: 333.66 | H25: =ROUND(G25*F25,2) -> 1668.3 | I25: =(H25*$M$28)+H25 -> 1913.406839 | K25: Fórmula Para Cálculo do B.D.I
A26: GT6.2 | B26: 34.05.30 | C26: EMBASA/COMPOSIÇÃO | D26: Ensaio: Teor de Matéria Orgânica | E26: un | F26: 5 | G26: 250 | H26: 1250 | I26: 1433.650152 | K26: BDI =(((1+A4+A1+A2)*(1+A3)*(1+B))/(1-C))-1
A27: GT6.3 | C27: CODE | D27: Ensaio: Reatividade Potencial | E27: un | F27: 5 | G27: 865.67 | H27: 4328.35 | I27: 4964.27171
A28: TOTAL SERVIÇOS GEOTÉCNICOS | I28: =SUM(I9:I27) -> 225909.1087 | K28: Bonificação Sobre Despesas indiretas (B.D.I) = | M28: =(((1+M15+M12+M13)*(1+M14)*(1+M19))/(1-M24))-1 -> 0.146920122
A29: LEGENDA:
A30: Uni - unidade de medição do insumo;
A31: Qde - Quantidade do Insumo (não pode ocorrer alteração pela Licitante)
A32: PU - Preço Unitário (composições padrão da Codevasf, já incluso o FatorK)
A33: PT - Preço Total (incluído encargos, taxas e impostos) - PT = Qde x PU

Sheet PFP1.3_Ger
A1: RECURSOS GERAIS
A3: NOME DA EMPRESA:
A5: PROJETO: | E5: CONTRATANTE: | G5: =PFP!K5 -> BASE:
A6: =PFP!A6 -> Contratação para Elaboração de Estudos Básicos, Estudos de Viabilidade Técnica, Econômica e Ambiental (EVTEA), e Consolidação do Anteprojeto de Engenharia para Atividades de Irrigação em uma área total estimada de 8.500 hectares, ao longo das margens do Riacho Pontal, situado no município de Petrolina-PE. | E6: CODEVASF (SEDE) | G6: =PFP!K6 -> 2024-10-01
A7: Cod. | B7: Base | C7: Insumos | D7: Uni | E7: Qde | F7: Preço Unitário (PU) | G7: Preço Total (PT)
A8: V1 | B8: CODE | C8: Diárias | D8: dia | E8: 120 | F8: ='CPU HOSPEDAGEM'!C19 -> 193.1200758 | G8: =E8*F8 -> 23174.40909
B9: CODE | C9: Veículo leve - 53 kW (sem motorista) | D9: mês | E9: 3 | F9: ='CPU-VEICULO_Leve'!D7 -> 3358.807213 | G9: 10076.42164
A10: V3 | B10: CODE | C10: Caminhonete 2.8 4x4 Diesel | D10: mês | E10: 3 | F10: ='CPU-VEICULO_PickUp'!C10 -> 7163.790168 | G10: 21491.37051
A11: B8951 | B11: DNIT | C11: Imóvel Comercial | D11: m².mês | E11: 240 | F11: 47.13 | G11: 11311.2
A12: B8953 | B12: DNIT | C12: Mobiliário de Escritório | D12: Ocupante.mês | E12: 60 | F12: 473 | G12: 28380
A13: B8959 | B13: DNIT | C13: Custos Diversos de Escritório | D13: Ocupante.mês | E13: 60 | F13: 134.37 | G13: 8062.2
A15: TOTAL RECURSOS GERAIS | G15: =SUM(G8:G14) -> 102495.6012
C16: Drone | D16: mês | E16: 1 | F16: =Drone!N69 -> 2884.47 | G16: =E16*F16 -> 2884.47
A17: TOTAL EQUIPAMENTO PARA AMBIENTAL | G17: =G16 -> 2884.47
A18: LEGENDA:
A19: Uni - unidade de medição do insumo;
A20: Qde - Quantidade do Insumo (não pode ocorrer alteração pela Licitante)
A21: PU - Preço Unitário (composições padrão da Codevasf, já incluso o FatorK)
A22: PT - Preço Total (incluído encargos, taxas e impostos) - PT = Qde x PU
B25: Unidade errada, é m².mês
B26: Ocupante.mês
B27: Ocupante.mês

Sheet PFP1.4_Pedo
A1: SERVIÇOS PEDOLÓGICOS | J1: CODIGO:
L2: MEMÓRIA DE CALCULO DO BDI DE FORNECIMENTO
A3: NOME DA EMPRESA: | L3: ITEM | M3: DISCRIMINAÇÃO | N3: PERC. (%)
A5: PROJETO: | G5: CONTRATANTE:
G6: CODEVASF (SEDE) | L6: 1.00 | M6: Despesas Indiretas
A7: Cod. | B7: Base | C7: Código | D7: Referência | E7: Insumos | F7: Uni | G7: Qde | H7: Custo Unitário (CU) | I7: Custo Total | J7: Preço Total (PT) | L7: A1 | M7: Seguro e Garantia | N7: 0.008
A8: GT 1 | B8: CODE | E8: Sondagens | L8: A2 | M8: Riscos e Imprevistos | N8: 0.0115
A9: GT1.2 | B9: CODE | C9: 32.01.01 | D9: Consultiva Codevasf | E9: Tradagens Pedológicas Auxiliares | F9: un | G9: 1700 | H9: 107.1 | I9: =ROUND(H9*G9,2) -> 182070 | J9: =(I9*$N$23)+I9 -> 208819.7466 | L9: A3 | M9: Despesas Financeiras | N9: 0.0105
A10: GT1.3 | B10: CODE | D10: Consultiva Codevasf | E10: Abertura e Descrição de Trincheiras | F10: un | G10: 425 | H10: 350.61 | I10: =ROUND(H10*G10,2) -> 149009.25 | J10: =(I10*$N$23)+I10 -> 170901.7072 | L10: A4 | M10: Administração Central | N10: 0.022
A11: GT2 | B11: CODE | E11: Ensaios: | L11: Total do Grupo A = | N11: =SUM(N7:N10) -> 0.052
A12: GT2.1 | B12: CODE | D12: Consultiva Codevasf | E12: Análises completas de trincheiras* | F12: un | G12: 255 | H12: =H10 -> 350.61 | I12: =ROUND(H12*G12,2) -> 89405.55 | J12: =(I12*$N$23)+I12 -> 102541.0243 | L12: 2.00 | M12: Benefício
A13: GT2.2 | B13: CODE | C13: SE 40.05.0050 | D13: SCO/COMPOSIÇÃO | E13: Análises parciais de pedologia | F13: un | G13: 255 | H13: 250 | I13: =ROUND(H13*G13,2) -> 63750 | J13: =(I13*$N$23)+I13 -> 73116.15777 | L13: B1 | M13: LUCRO | N13: 0.05
A14: GT2.3 | B14: CODE | D14: Consultiva Codevasf | E14: Picadas manuais | F14: km | G14: 5 | H14: 270.88 | I14: 1354.4 | J14: 1553.388613 | L14: Total do Grupo B = | N14: =N13 -> 0.05
A15: GT2.4 | B15: CODE | D15: Consultiva Codevasf | E15: Teste de condutividade hidráulica tipo porchet | F15: un | G15: 20 | H15: 290.82 | I15: 5816.4 | J15: 6670.946197 | L15: 3.00 | M15: Impostos
A16: TOTAL SERVIÇOS PEDOLÓGICOS | J16: =SUM(J9:J15) -> 563602.9707 | L16: C1 | M16: PIS / PASEP | N16: 0.0065
A17: LEGENDA: | L17: C2 | M17: COFINS | N17: 0.03
A18: Uni - unidade de medição do insumo; | L18: C3 | M18: ISS | N18: 0
A19: km - Quilômetro de medição | L19: Total do Grupo C = | N19: =SUM(N16:N18) -> 0.0365
A20: Qde - Quantidade do Insumo (não pode ocorrer alteração pela Licitante) | L20: Fórmula Para Cálculo do B.D.I
L21: BDI =(((1+A4+A1+A2)*(1+A3)*(1+B))/(1-C))-1
A22: OBSERVAÇÕES
A23: * O preço para o serviço "Análises completas de trincheiras" foi estimado como sendo o mesmo valor do serviço "Abertura e Descrição de Trincheiras". | L23: Bonificação Sobre Despesas indiretas (B.D.I) = | N23: =(((1+N10+N7+N8)*(1+N9)*(1+N14))/(1-N19))-1 -> 0.146920122

Sheet PFP2.1_FatorKa
A1: DETALHAMENTO DOS ENCARGOS SOCIAIS: Ka | F1: CODIGO:
F2: PFP-2.1
A3: NOME DA CONSULTORA:
A5: PROJETO: | C5: CONTRATANTE: | F5: =PFP!K5 -> BASE:
A6: =PFP!A6 -> Contratação para Elaboração de Estudos Básicos, Estudos de Viabilidade Técnica, Econômica e Ambiental (EVTEA), e Consolidação do Anteprojeto de Engenharia para Atividades de Irrigação em uma área total estimada de 8.500 hectares, ao longo das margens do Riacho Pontal, situado no município de Petrolina-PE. | C6: CODEVASF (SEDE) | F6: vigencia 12/2023
A7: Cod | B7: DESCRIÇÃO | E7: % | F7: R$
A8: A | B8: ENCARGOS SOCIAIS BÁSICOS | E8: =ROUND(SUM(E9:E16),4) -> 0.368 | F8: =ROUND(E8*SUMIF(PFP!$B$8:$B$28,"MO1",PFP!$K$8:$K$28),2) -> 188619.01
A9: A1 | B9: INSS | E9: 0.2 | F9: =ROUND(E9*SUMIF(PFP!$B$8:$B$28,"MO1",PFP!$K$8:$K$28),2) -> 102510.33
A10: A2 | B10: SESI | E10: 0.015 | F10: =ROUND(E10*SUMIF(PFP!$B$8:$B$28,"MO1",PFP!$K$8:$K$28),2) -> 7688.27
A11: A3 | B11: SENAI | E11: 0.01 | F11: =ROUND(E11*SUMIF(PFP!$B$8:$B$28,"MO1",PFP!$K$8:$K$28),2) -> 5125.52
A12: A4 | B12: INCRA | E12: 0.002 | F12: =ROUND(E12*SUMIF(PFP!$B$8:$B$28,"MO1",PFP!$K$8:$K$28),2) -> 1025.1
A13: A5 | B13: SEBRAE | E13: 0.006 | F13: =ROUND(E13*SUMIF(PFP!$B$8:$B$28,"MO1",PFP!$K$8:$K$28),2) -> 3075.31
A14: A6 | B14: Salário Educação | E14: 0.025 | F14: =ROUND(E14*SUMIF(PFP!$B$8:$B$28,"MO1",PFP!$K$8:$K$28),2) -> 12813.79
A15: A7 | B15: Seguro Contra Acidentes de Trabalho | E15: 0.03 | F15: =ROUND(E15*SUMIF(PFP!$B$8:$B$28,"MO1",PFP!$K$8:$K$28),2) -> 15376.55
A16: A8 | B16: FGTS | E16: 0.08 | F16: =ROUND(E16*SUMIF(PFP!$B$8:$B$28,"MO1",PFP!$K$8:$K$28),2) -> 41004.13
A17: B | B17: ENCARGOS SOCIAIS QUE RECEBEM INCIDÊNCIA DE "A" | E17: =ROUND(SUM(E18:E24),4) -> 0.1792 | F17: =ROUND(E17*SUMIF(PFP!$B$8:$B$28,"MO1",PFP!$K$8:$K$28),2) -> 91849.26
A18: B3 | B18: Auxílio Enfermidade | E18: 0.0064 | F18: =ROUND(E18*SUMIF(PFP!$B$8:$B$28,"MO1",PFP!$K$8:$K$28),2) -> 3280.33
A19: B4 | B19: 13º Salário | E19: 0.0833 | F19: =ROUND(E19*SUMIF(PFP!$B$8:$B$28,"MO1",PFP!$K$8:$K$28),2) -> 42695.55
A20: B5 | B20: Licença Paternidade | E20: 0.0004 | F20: =ROUND(E20*SUMIF(PFP!$B$8:$B$28,"MO1",PFP!$K$8:$K$28),2) -> 205.02
A21: B6 | B21: Faltas Justificadas | E21: 0.0056 | F21: =ROUND(E21*SUMIF(PFP!$B$8:$B$28,"MO1",PFP!$K$8:$K$28),2) -> 2870.29
A22: B8 | B22: Auxílio Acidente de Trabalho | E22: 0.0008 | F22: =ROUND(E22*SUMIF(PFP!$B$8:$B$28,"MO1",PFP!$K$8:$K$28),2) -> 410.04
A23: B9 | B23: Férias Gozadas | E23: 0.0824 | F23: =ROUND(E23*SUMIF(PFP!$B$8:$B$28,"MO1",PFP!$K$8:$K$28),2) -> 42234.26
A24: B10 | B24: Salário Maternidade | E24: 0.0003 | F24: =ROUND(E24*SUMIF(PFP!$B$8:$B$28,"MO1",PFP!$K$8:$K$28),2) -> 153.77
A25: C | B25: ENCARGOS SOCIAIS QUE NÃO RECEBEM INCIDÊNCIA DE "A" | E25: =ROUND(SUM(E26:E30),4) -> 0.0837 | F25: =ROUND(E25*SUMIF(PFP!$B$8:$B$28,"MO1",PFP!$K$8:$K$28),2) -> 42900.57
A26: C1 | B26: Aviso Prévio Indenizado | E26: 0.0363 | F26: =ROUND(E26*SUMIF(PFP!$B$8:$B$28,"MO1",PFP!$K$8:$K$28),2) -> 18605.62
A27: C2 | B27: Aviso Prévio Trabalhado | E27: 0.0009 | F27: =ROUND(E27*SUMIF(PFP!$B$8:$B$28,"MO1",PFP!$K$8:$K$28),2) -> 461.3
A28: C3 | B28: Férias Indenizadas | E28: 0.022 | F28: =ROUND(E28*SUMIF(PFP!$B$8:$B$28,"MO1",PFP!$K$8:$K$28),2) -> 11276.14
A29: C4 | B29: Depósito Rescisão Sem Justa Causa | E29: 0.0214 | F29: =ROUND(E29*SUMIF(PFP!$B$8:$B$28,"MO1",PFP!$K$8:$K$28),2) -> 10968.61
A30: C5 | B30: Indenização Adicional | E30: 0.0031 | F30: =ROUND(E30*SUMIF(PFP!$B$8:$B$28,"MO1",PFP!$K$8:$K$28),2) -> 1588.91
A31: D | B31: REINCIDÊNCIAS | E31: =ROUND(SUM(E32:E33),4) -> 0.0691 | F31: =ROUND(E31*SUMIF(PFP!$B$8:$B$28,"MO1",PFP!$K$8:$K$28),2) -> 35417.32
A32: D1 | B32: Reincidência de "A" sobre "B" | E32: =ROUND(E8*E17,4) -> 0.0659 | F32: =ROUND(E32*SUMIF(PFP!$B$8:$B$28,"MO1",PFP!$K$8:$K$28),2) -> 33777.15
A33: D2 | B33: Reincidência de "A" sobre Aviso Prévio Trabalhado e reincidência do FGTS sobre Aviso Prévio Indenizado | E33: =ROUND((E27*E8)+(E26*E16),4) -> 0.0032 | F33: =ROUND(E33*SUMIF(PFP!$B$8:$B$28,"MO1",PFP!$K$8:$K$28),2) -> 1640.17
A34: K1a | B34: ENCARGOS SOCIAIS | E34: =ROUND(E8+E17+E25+E31,4) -> 0.7 | F34: =ROUND(E34*SUMIF(PFP!$B$8:$B$28,"MO1",PFP!$K$8:$K$28),2) -> 358786.16
A35: Ka | B35: TAXA DE RESSARCIMENTO DE DESPESAS E ENCARGOS SOBRE MO1 | E35: =ROUND((1+E34+PFP3_FatorKd!E13)*(1+PFP3_FatorKd!E12)*(1+PFP3_FatorKd!E8),4) -> 2.1549
A36: OBSERVAÇÃO: CELETISTAS E EQUIVALENTES
A37: 1 - DISCRIMINAR OS ENCARGOS SOCIAIS COM SEUS RESPECTIVOS PERCENTUAS TOTALIZANDO OS MESMOS.
A38: 2 - APLICAR O % TOTAL P/ CALCULAR OS E. SOCIAIS INCIDENTES NA MÃO-DE-OBRA CELETISTAS
A39: Ka - Taxa de Ressarcimento de Despesas e Encargos sobre a Mão de Obra CELETISTA (incide apenas no Insumo Codigo MO1)
A40: Ka = (1 + K1 + K2) x (1 + K3) x (1 + K4)

Sheet PFP2.2_FatorKb
A1: DETALHAMENTO DOS ENCARGOS SOCIAIS: Kb | F1: CODIGO:
F2: PFP-2.2
A3: NOME DA CONSULTORA:
A5: PROJETO: | C5: CONTRATANTE: | F5: ='PFP2.1_FatorKa'!F5 -> BASE:
A6: =PFP!A6 -> Contratação para Elaboração de Estudos Básicos, Estudos de Viabilidade Técnica, Econômica e Ambiental (EVTEA), e Consolidação do Anteprojeto de Engenharia para Atividades de Irrigação em uma área total estimada de 8.500 hectares, ao longo das margens do Riacho Pontal, situado no município de Petrolina-PE. | C6: CODEVASF (SEDE) | F6: ='PFP2.1_FatorKa'!F6 -> vigencia 12/2023
A7: Cod | B7: DESCRIÇÃO | E7: % | F7: R$
A8: A | B8: ENCARGOS SOCIAIS BÁSICOS | E8: =ROUND(SUM(E9:E16),4) -> 0.2 | F8: =ROUND(E8*SUMIF(PFP!$B$8:$B$28,"MO2",PFP!$K$8:$K$28),2) -> 26197.53
A9: A1 | B9: INSS | E9: 0.2 | F9: =ROUND(E9*SUMIF(PFP!$B$8:$B$28,"MO2",PFP!$K$8:$K$28),2) -> 26197.53
A10: A2 | B10: SESI | E10: 0 | F10: =ROUND(E10*SUMIF(PFP!$B$8:$B$28,"MO2",PFP!$K$8:$K$28),2) -> 0
A11: A3 | B11: SENAI | E11: 0 | F11: =ROUND(E11*SUMIF(PFP!$B$8:$B$28,"MO2",PFP!$K$8:$K$28),2) -> 0
A12: A4 | B12: INCRA | E12: 0 | F12: =ROUND(E12*SUMIF(PFP!$B$8:$B$28,"MO2",PFP!$K$8:$K$28),2) -> 0
A13: A5 | B13: SEBRAE | E13: 0 | F13: =ROUND(E13*SUMIF(PFP!$B$8:$B$28,"MO2",PFP!$K$8:$K$28),2) -> 0
A14: A6 | B14: Salário Educação | E14: 0 | F14: =ROUND(E14*SUMIF(PFP!$B$8:$B$28,"MO2",PFP!$K$8:$K$28),2) -> 0
A15: A7 | B15: Seguro Contra Acidentes de Trabalho | E15: 0 | F15: =ROUND(E15*SUMIF(PFP!$B$8:$B$28,"MO2",PFP!$K$8:$K$28),2) -> 0
A16: A8 | B16: FGTS | E16: 0 | F16: =ROUND(E16*SUMIF(PFP!$B$8:$B$28,"MO2",PFP!$K$8:$K$28),2) -> 0
A17: B | B17: ENCARGOS SOCIAIS QUE RECEBEM INCIDÊNCIA DE "A" | E17: =ROUND(SUM(E18:E24),4) -> 0 | F17: =ROUND(E17*SUMIF(PFP!$B$8:$B$28,"MO2",PFP!$K$8:$K$28),2) -> 0
A18: B3 | B18: Auxílio Enfermidade | E18: 0 | F18: =ROUND(E18*SUMIF(PFP!$B$8:$B$28,"MO2",PFP!$K$8:$K$28),2) -> 0
A19: B4 | B19: 13º Salário | E19: 0 | F19: =ROUND(E19*SUMIF(PFP!$B$8:$B$28,"MO2",PFP!$K$8:$K$28),2) -> 0
A20: B5 | B20: Licença Paternidade | E20: 0 | F20: =ROUND(E20*SUMIF(PFP!$B$8:$B$28,"MO2",PFP!$K$8:$K$28),2) -> 0
A21: B6 | B21: Faltas Justificadas | E21: 0 | F21: =ROUND(E21*SUMIF(PFP!$B$8:$B$28,"MO2",PFP!$K$8:$K$28),2) -> 0
A22: B8 | B22: Auxílio Acidente de Trabalho | E22: 0 | F22: =ROUND(E22*SUMIF(PFP!$B$8:$B$28,"MO2",PFP!$K$8:$K$28),2) -> 0
A23: B9 | B23: Férias Gozadas | E23: 0 | F23: =ROUND(E23*SUMIF(PFP!$B$8:$B$28,"MO2",PFP!$K$8:$K$28),2) -> 0
A24: B10 | B24: Salário Maternidade | E24: 0 | F24: =ROUND(E24*SUMIF(PFP!$B$8:$B$28,"MO2",PFP!$K$8:$K$28),2) -> 0
A25: C | B25: ENCARGOS SOCIAIS QUE NÃO RECEBEM INCIDÊNCIA DE "A" | E25: =ROUND(SUM(E26:E30),4) -> 0 | F25: =ROUND(E25*SUMIF(PFP!$B$8:$B$28,"MO2",PFP!$K$8:$K$28),2) -> 0
A26: C1 | B26: Aviso Prévio Indenizado | E26: 0 | F26: =ROUND(E26*SUMIF(PFP!$B$8:$B$28,"MO2",PFP!$K$8:$K$28),2) -> 0
A27: C2 | B27: Aviso Prévio Trabalhado | E27: 0 | F27: =ROUND(E27*SUMIF(PFP!$B$8:$B$28,"MO2",PFP!$K$8:$K$28),2) -> 0
A28: C3 | B28: Férias Indenizadas | E28: 0 | F28: =ROUND(E28*SUMIF(PFP!$B$8:$B$28,"MO2",PFP!$K$8:$K$28),2) -> 0
A29: C4 | B29: Depósito Rescisão Sem Justa Causa | E29: 0 | F29: =ROUND(E29*SUMIF(PFP!$B$8:$B$28,"MO2",PFP!$K$8:$K$28),2) -> 0
A30: C5 | B30: Indenização Adicional | E30: 0 | F30: =ROUND(E30*SUMIF(PFP!$B$8:$B$28,"MO2",PFP!$K$8:$K$28),2) -> 0
A31: D | B31: REINCIDÊNCIAS | E31: =ROUND(SUM(E32:E33),4) -> 0 | F31: =ROUND(E31*SUMIF(PFP!$B$8:$B$28,"MO2",PFP!$K$8:$K$28),2) -> 0
A32: D1 | B32: Reincidência de "A" sobre "B" | E32: =ROUND(E8*E17,4) -> 0 | F32: =ROUND(E32*SUMIF(PFP!$B$8:$B$28,"MO2",PFP!$K$8:$K$28),2) -> 0
A33: D2 | B33: Reincidência de "A" sobre Aviso Prévio Trabalhado e reincidência do FGTS sobre Aviso Prévio Indenizado | E33: =ROUND((E27*E8)+(E26*E16),4) -> 0 | F33: =ROUND(E33*SUMIF(PFP!$B$8:$B$28,"MO2",PFP!$K$8:$K$28),2) -> 0
A34: K1b | B34: ENCARGOS SOCIAIS | E34: =ROUND(E8+E17+E25+E31,4) -> 0.2 | F34: =ROUND(E34*SUMIF(PFP!$B$8:$B$28,"MO2",PFP!$K$8:$K$28),2) -> 26197.53
A35: Kb | B35: TAXA DE RESSARCIMENTO DE DESPESAS E ENCARGOS SOBRE MO2 | E35: =ROUND((1+E34+PFP3_FatorKd!E13)*(1+PFP3_FatorKd!E12)*(1+PFP3_FatorKd!E8),4) -> 1.547
A36: OBSERVAÇÃO: AUTÔNOMOS E EQUIVALENTES
A37: 1 - DISCRIMINAR OS ENCARGOS SOCIAIS COM SEUS RESPECTIVOS PERCENTUAS TOTALIZANDO OS MESMOS.
A38: 2 - APLICAR O % TOTAL P/ CALCULAR OS E. SOCIAIS INCIDENTES NA MÃO-DE-OBRA AUTONÔMOS
A39: Kb - Taxa de Ressarcimento de Despesas e Encargos sobre a Mão de Obra AUTONÔMA (incide apenas no Insumo Codigo MO2)
A40: Kb = (1 + K1 + K2) x (1 + K3) x (1 + K4)

Sheet PFP2.3_FatorKc
A1: DETALHAMENTO DOS ENCARGOS SOCIAIS: Kc | F1: CODIGO:
F2: PFP-2.3
A3: NOME DA CONSULTORA:
A5: PROJETO: | C5: CONTRATANTE: | F5: ='PFP2.2_FatorKb'!F5 -> BASE:
A6: =PFP!A6 -> Contratação para Elaboração de Estudos Básicos, Estudos de Viabilidade Técnica, Econômica e Ambiental (EVTEA), e Consolidação do Anteprojeto de Engenharia para Atividades de Irrigação em uma área total estimada de 8.500 hectares, ao longo das margens do Riacho Pontal, situado no município de Petrolina-PE. | C6: CODEVASF (SEDE) | F6: ='PFP2.2_FatorKb'!F6 -> vigencia 12/2023
A7: Cod | B7: DESCRIÇÃO | E7: % | F7: R$
A8: A | B8: ENCARGOS SOCIAIS BÁSICOS | E8: =SUM(E9:E16) -> 0 | F8: =ROUND(E8*SUMIF(PFP!$B$8:$B$28,"MO3",PFP!$K$8:$K$28),2) -> 0
A9: A1 | B9: INSS | E9: 0 | F9: =ROUND(E9*SUMIF(PFP!$B$8:$B$28,"MO3",PFP!$K$8:$K$28),2) -> 0
A10: A2 | B10: SESI | E10: 0 | F10: =ROUND(E10*SUMIF(PFP!$B$8:$B$28,"MO3",PFP!$K$8:$K$28),2) -> 0
A11: A3 | B11: SENAI | E11: 0 | F11: =ROUND(E11*SUMIF(PFP!$B$8:$B$28,"MO3",PFP!$K$8:$K$28),2) -> 0
A12: A4 | B12: INCRA | E12: 0 | F12: =ROUND(E12*SUMIF(PFP!$B$8:$B$28,"MO3",PFP!$K$8:$K$28),2) -> 0
A13: A5 | B13: SEBRAE | E13: 0 | F13: =ROUND(E13*SUMIF(PFP!$B$8:$B$28,"MO3",PFP!$K$8:$K$28),2) -> 0
A14: A6 | B14: Salário Educação | E14: 0 | F14: =ROUND(E14*SUMIF(PFP!$B$8:$B$28,"MO3",PFP!$K$8:$K$28),2) -> 0
A15: A7 | B15: Seguro Contra Acidentes de Trabalho | E15: 0 | F15: =ROUND(E15*SUMIF(PFP!$B$8:$B$28,"MO3",PFP!$K$8:$K$28),2) -> 0
A16: A8 | B16: FGTS | E16: 0 | F16: =ROUND(E16*SUMIF(PFP!$B$8:$B$28,"MO3",PFP!$K$8:$K$28),2) -> 0
A17: B | B17: ENCARGOS SOCIAIS QUE RECEBEM INCIDÊNCIA DE "A" | E17: =ROUND(SUM(E18:E24),4) -> 0 | F17: =ROUND(E17*SUMIF(PFP!$B$8:$B$28,"MO3",PFP!$K$8:$K$28),2) -> 0
A18: B3 | B18: Auxílio Enfermidade | E18: 0 | F18: =ROUND(E18*SUMIF(PFP!$B$8:$B$28,"MO3",PFP!$K$8:$K$28),2) -> 0
A19: B4 | B19: 13º Salário | E19: 0 | F19: =ROUND(E19*SUMIF(PFP!$B$8:$B$28,"MO3",PFP!$K$8:$K$28),2) -> 0
A20: B5 | B20: Licença Paternidade | E20: 0 | F20: =ROUND(E20*SUMIF(PFP!$B$8:$B$28,"MO3",PFP!$K$8:$K$28),2) -> 0
A21: B6 | B21: Faltas Justificadas | E21: 0 | F21: =ROUND(E21*SUMIF(PFP!$B$8:$B$28,"MO3",PFP!$K$8:$K$28),2) -> 0
A22: B8 | B22: Auxílio Acidente de Trabalho | E22: 0 | F22: =ROUND(E22*SUMIF(PFP!$B$8:$B$28,"MO3",PFP!$K$8:$K$28),2) -> 0
A23: B9 | B23: Férias Gozadas | E23: 0 | F23: =ROUND(E23*SUMIF(PFP!$B$8:$B$28,"MO3",PFP!$K$8:$K$28),2) -> 0
A24: B10 | B24: Salário Maternidade | E24: 0 | F24: =ROUND(E24*SUMIF(PFP!$B$8:$B$28,"MO3",PFP!$K$8:$K$28),2) -> 0
A25: C | B25: ENCARGOS SOCIAIS QUE NÃO RECEBEM INCIDÊNCIA DE "A" | E25: =ROUND(SUM(E26:E30),4) -> 0 | F25: =ROUND(E25*SUMIF(PFP!$B$8:$B$28,"MO3",PFP!$K$8:$K$28),2) -> 0
A26: C1 | B26: Aviso Prévio Indenizado | E26: 0 | F26: =ROUND(E26*SUMIF(PFP!$B$8:$B$28,"MO3",PFP!$K$8:$K$28),2) -> 0
A27: C2 | B27: Aviso Prévio Trabalhado | E27: 0 | F27: =ROUND(E27*SUMIF(PFP!$B$8:$B$28,"MO3",PFP!$K$8:$K$28),2) -> 0
A28: C3 | B28: Férias Indenizadas | E28: 0 | F28: =ROUND(E28*SUMIF(PFP!$B$8:$B$28,"MO3",PFP!$K$8:$K$28),2) -> 0
A29: C4 | B29: Depósito Rescisão Sem Justa Causa | E29: 0 | F29: =ROUND(E29*SUMIF(PFP!$B$8:$B$28,"MO3",PFP!$K$8:$K$28),2) -> 0
A30: C5 | B30: Indenização Adicional | E30: 0 | F30: =ROUND(E30*SUMIF(PFP!$B$8:$B$28,"MO3",PFP!$K$8:$K$28),2) -> 0
A31: D | B31: REINCIDÊNCIAS | E31: =ROUND(SUM(E32:E33),4) -> 0 | F31: =ROUND(E31*SUMIF(PFP!$B$8:$B$28,"MO3",PFP!$K$8:$K$28),2) -> 0
A32: D1 | B32: Reincidência de "A" sobre "B" | E32: =ROUND(E8*E17,4) -> 0 | F32: =ROUND(E32*SUMIF(PFP!$B$8:$B$28,"MO3",PFP!$K$8:$K$28),2) -> 0
A33: D2 | B33: Reincidência de "A" sobre Aviso Prévio Trabalhado e reincidência do FGTS sobre Aviso Prévio Indenizado | E33: =ROUND(E8*E27,4)+ROUND(E26*E11,4) -> 0 | F33: =ROUND(E33*SUMIF(PFP!$B$8:$B$28,"MO3",PFP!$K$8:$K$28),2) -> 0
A34: K1c | B34: ENCARGOS SOCIAIS | E34: =ROUND(E8+E17+E25+E31,4) -> 0 | F34: =ROUND(E34*SUMIF(PFP!$B$8:$B$28,"MO3",PFP!$K$8:$K$28),2) -> 0
A35: Kc | B35: TAXA DE RESSARCIMENTO DE DESPESAS E ENCARGOS SOBRE MO3 | E35: =ROUND((1+E34+PFP3_FatorKd!E13)*(1+PFP3_FatorKd!E12)*(1+PFP3_FatorKd!E8),4) -> 1.3038
A36: OBSERVAÇÃO: SOCIETÁRIOS E EQUIVALENTES
A37: 1 - DISCRIMINAR OS ENCARGOS SOCIAIS COM SEUS RESPECTIVOS PERCENTUAS TOTALIZANDO OS MESMOS.
A38: 2 - APLICAR O % TOTAL P/ CALCULAR OS E. SOCIAIS INCIDENTES NA MÃO-DE-OBRA DE SOCIETÁRIOS
A39: Kc - Taxa de Ressarcimento de Despesas e Encargos sobre a Mão de Obra SOCIETÁRIA (incide apenas no Insumo Codigo MO3)
A40: Kc = (1 + K1 + K2) x (1 + K3) x (1 + K4)

Sheet PFP3_FatorKd
A1: DESPESAS FISCAIS E CUSTOS DIVERSOS: Kc | F1: CODIGO:
F2: PFP-3
A3: NOME DA CONSULTORA:
A5: PROJETO: | C5: CONTRATANTE: | F5: ='PFP2.3_FatorKc'!F5 -> BASE:
A6: =PFP!A6 -> Contratação para Elaboração de Estudos Básicos, Estudos de Viabilidade Técnica, Econômica e Ambiental (EVTEA), e Consolidação do Anteprojeto de Engenharia para Atividades de Irrigação em uma área total estimada de 8.500 hectares, ao longo das margens do Riacho Pontal, situado no município de Petrolina-PE. | C6: CODEVASF (SEDE) | F6: ='PFP2.3_FatorKc'!F6 -> vigencia 12/2023
A7: Cod | B7: DESCRIÇÃO1 | D7: % preço2 | E7: % custo4 | F7: R$
A8: K4 | B8: TRIBUTOS | D8: =ROUND(D9+D10+D11,4) -> 0.124 | E8: =ROUND(E9+E10+E11,4) -> 0.1416 | F8: =E8*SUM(SUMIF(PFP!$B$8:$B$28,"MO1",PFP!$K$8:$K$28)*(1+'PFP2.1_FatorKa'!$E$34)+SUMIF(PFP!$B$8:$B$28,"MO2",PFP!$K$8:$K$28)*(1+'PFP2.2_FatorKb'!$E$34)+SUMIF(PFP!$B$8:$B$28,"<>MO*",PFP!$K$8:$K$28)+$F$13+$F$12) -> 204272.3549
A9: K4.1 | B9: ISS | D9: 0.05 | E9: =ROUND((1/(1-$D$8))*D9,4) -> 0.0571 | F9: =E9*SUM(SUMIF(PFP!$B$8:$B$28,"MO1",PFP!$K$8:$K$28)*(1+'PFP2.1_FatorKa'!$E$34)+SUMIF(PFP!$B$8:$B$28,"MO2",PFP!$K$8:$K$28)*(1+'PFP2.2_FatorKb'!$E$34)+SUMIF(PFP!$B$8:$B$28,"<>MO*",PFP!$K$8:$K$28)+$F$13+$F$12) -> 82372.53859
A10: K4.2 | B10: PIS3 - aliquota efetiva aplicavel percentual-desconto | D10: =ROUND(1.65%*0.8,4) -> 0.0132 | E10: =ROUND((1/(1-$D$8))*D10,4) -> 0.0151 | F10: =E10*SUM(SUMIF(PFP!$B$8:$B$28,"MO1",PFP!$K$8:$K$28)*(1+'PFP2.1_FatorKa'!$E$34)+SUMIF(PFP!$B$8:$B$28,"MO2",PFP!$K$8:$K$28)*(1+'PFP2.2_FatorKb'!$E$34)+SUMIF(PFP!$B$8:$B$28,"<>MO*",PFP!$K$8:$K$28)+$F$13+$F$12) -> 21783.28078
A11: K4.3 | B11: COFINS3 - aliquota efetiva aplicavel percentual-desconto | D11: =ROUND(7.6%*0.8,4) -> 0.0608 | E11: =ROUND((1/(1-$D$8))*D11,4) -> 0.0694 | F11: =E11*SUM(SUMIF(PFP!$B$8:$B$28,"MO1",PFP!$K$8:$K$28)*(1+'PFP2.1_FatorKa'!$E$34)+SUMIF(PFP!$B$8:$B$28,"MO2",PFP!$K$8:$K$28)*(1+'PFP2.2_FatorKb'!$E$34)+SUMIF(PFP!$B$8:$B$28,"<>MO*",PFP!$K$8:$K$28)+$F$13+$F$12) -> 100116.5355
A12: K3 | B12: REMUNERAÇÃO DA EMPRESA (LUCRO) | E12: 0.065 | F12: =E12*SUM(SUMIF(PFP!$B$8:$B$28,"MO1",PFP!$K$8:$K$28)*(1+'PFP2.1_FatorKa'!$E$34)+SUMIF(PFP!$B$8:$B$28,"MO2",PFP!$K$8:$K$28)*(1+'PFP2.2_FatorKb'!$E$34)+SUMIF(PFP!$B$8:$B$28,"<>MO*",PFP!$K$8:$K$28)+$F$13) -> 88046.0934
A13: K2 | B13: CUSTOS DA ADMINISTRAÇÃO CENTRAL | E13: =ROUND(SUM(E14:E16),4) -> 0.0724 | F13: =ROUND(E13*SUMIF(PFP!$B$8:$B$28,"MO*",PFP!$K$8:$K$28),2) -> 50543.1
A14: K2.1 | B14: Custos da administração central da empresa (diretoria, pessoal técnico de apoio e pessoal administrativo não diretamente vinculado à prestação dos serviços) | E14: 0.04 | F14: =ROUND(E14*SUMIF(PFP!$B$8:$B$28,"MO*",PFP!$K$8:$K$28),2) -> 27924.36
A15: K2.2 | B15: Outras despesas que afetam o custo de produção como treinamento, biblioteca, programa de qualidade, programa de benefícios, auditoria interna e externa | E15: 0.02 | F15: =ROUND(E15*SUMIF(PFP!$B$8:$B$28,"MO*",PFP!$K$8:$K$28),2) -> 13962.18
A16: K2.3 | B16: Despesas fixas e variaveis com patrimônio, aluguéis, comunicação, manutenção e transporte não diretamente relacionados com o custo direto dos serviços | E16: 0.0124 | F16: =ROUND(E16*SUMIF(PFP!$B$8:$B$28,"MO*",PFP!$K$8:$K$28),2) -> 8656.55
A17: Kd | B17: TAXA RESSARCIMENTO DE DESPESAS SOBRE CUSTOS DIVERSOS | E17: =ROUND((1+E12)*(1+E8),4) -> 1.2158
A18: NOME DO INFORMANTE: | E18: QUALIFICAÇÃO:
A20: ASSINATURA: | E20: DATA:
A22: Observação:
A23: 1 - RELACIONAR OS CUSTOS DE ADMINISTRAÇÃO COM RESPECTIVOS PERCENTUAIS INCIDENTES NA MÃO -DE-OBRA
A24: 1 - DISCRIMINAR OS TRIBUTOS QUE INCIDEM SOBRE OS CUSTOS DA PRESTAÇÃO DOS SERVIÇOS
A25: 2 - K4 = INDICAR % DE CADA TRIBUTO E A SOMA DOS MESMOS (ex: ISS 5% + PIS 1,65% + COFINS 7,60% = 14,25%)
A26: 3 - PIS e COFINS, Regime de Incidencia Acumulativa (0,65% e 3,00% - sem percentual de desconto) ou em Regime de Incidencia Não Acumulativa (1,65% e 7,60% - aplicável percentual de desconto) de acordo com a forma de apuração do lucro no IRPJ. APRESENTAR COMPROVANTES de aproveitamento de créditos tributários dos últimos 12 meses em caso de aplicação de "percentual de desconto".
A27: 4 - AS DESPESAS FISCAIS (K4) INCIDEM SOBRE O TOTAL DA FATURA E NÃO SOBRE OS CUSTOS INCORRIDOS,
A28: DEVENDO SER CALCULADO O K4' APLICANDO-SE A SEGUINTE FÓRMULA:
A29: K4' = { [ 1 / ( 1 - K4) ] - 1 } x 100
A30: =CONCATENATE(" K4' = { [ 1 / ( 1 - ",D8," ) ] - 1 } x 100") -> K4' = { [ 1 / ( 1 - 0,124 ) ] - 1 } x 100
A31: Kc - Taxa de Ressarcimento de Despesas sobre Custos Diversos (incide sobre os Insumos Codigo DP e EM)
A32: Kc = (1 + K3) x (1 + K4)
A33: K2 - Incide sobre o Custo Total (CT) da Mão de Obra (MO* = MO1 + MO2)
A34: K3 - Incide sobre o Custo Total (CT) Mão de Obra com encargos (MO1 x Ka ou MO2 x Kb), demais Custos (DP e EM), e Custos da Administração Central (K2)
A35: K4 - Incide sobre o Custo Total (CT) Mão de Obra com encargos (MO1 x Ka ou MO2 x Kb), demais Custos (DP e EM), e Custos da Administração Central (K2) e Lucro (K3)

Sheet CRO1_Ins-Pro
A1: INSUMOS POR ETAPA/PRODUTO | J1: CÓDIGO:
J2: CRO-1
A3: Cod. | B3: Categoria / Insumo | C3: Uni | D3: Qde | E3: CUD | F3: PU | G3: FatorK | H3: E1. EB | I3: E2. EVTEA | J3: E3. APE
G4: Meses | H4: ='CRO2_Ins-Mes'!E9 -> 5 | I4: ='CRO2_Ins-Mes'!E16 -> 4 | J4: ='CRO2_Ins-Mes'!E23 -> 3
A5: =PFP!C8 -> P0 | B5: =PFP!E8 -> Engenheiro coordenador (P8061) | C5: mês | D5: =SUM(H5:J5) -> 3 | E5: =PFP!H8 -> 18189.93 | F5: =PFP!I8 -> 23716.03 | G5: =PFP!J8 -> 1.3038 | H5: ='CRO2_Ins-Mes'!E26 -> 1.25 | I5: ='CRO2_Ins-Mes'!E43 -> 1 | J5: ='CRO2_Ins-Mes'!E57 -> 0.75
A6: =PFP!C9 -> P1 | B6: =PFP!E9 -> Engenheiro sênior (P8067) | C6: mês | D6: 8.25 | E6: =PFP!H9 -> 15877.29 | F6: =PFP!I9 -> 24562.17 | G6: =PFP!J9 -> 1.547 | H6: ='CRO2_Ins-Mes'!E27 -> 1.25 | I6: ='CRO2_Ins-Mes'!E44 -> 4 | J6: ='CRO2_Ins-Mes'!E58 -> 3
A7: =PFP!C10 -> P2 | B7: =PFP!E10 -> Engenheiro pleno (P8066) | C7: mês | D7: 11.75 | E7: =PFP!H10 -> 12629.6 | F7: =PFP!I10 -> 27215.53 | G7: =PFP!J10 -> 2.1549 | H7: ='CRO2_Ins-Mes'!E28 -> 1.25 | I7: ='CRO2_Ins-Mes'!E45 -> 6 | J7: ='CRO2_Ins-Mes'!E59 -> 4.5
A8: =PFP!C11 -> P3 | B8: =PFP!E11 -> Engenheiro júnior (P8065) | C8: mês | D8: 18.75 | E8: =PFP!H11 -> 12002 | F8: =PFP!I11 -> 25863.11 | G8: =PFP!J11 -> 2.1549 | H8: ='CRO2_Ins-Mes'!E29 -> 1.25 | I8: ='CRO2_Ins-Mes'!E46 -> 10 | J8: ='CRO2_Ins-Mes'!E60 -> 7.5
B9: Economista | C9: mês | D9: 4 | E9: =PFP!H12 -> 6333.46 | F9: =PFP!I12 -> 13647.97 | G9: =PFP!J12 -> 2.1549 | H9: ='CRO2_Ins-Mes'!E30 -> 0 | I9: ='CRO2_Ins-Mes'!E47 -> 4 | J9: ='CRO2_Ins-Mes'!E61 -> 0
B10: Advogado | C10: mês | D10: 1 | E10: =PFP!H13 -> 6155.17 | F10: =PFP!I13 -> 13263.78 | G10: =PFP!J13 -> 2.1549 | H10: ='CRO2_Ins-Mes'!E31 -> 0 | I10: ='CRO2_Ins-Mes'!E48 -> 1 | J10: ='CRO2_Ins-Mes'!E62 -> 0
B11: Assistente Social | C11: mês | D11: 7 | E11: =PFP!H14 -> 4353.21 | F11: =PFP!I14 -> 9380.73 | G11: =PFP!J14 -> 2.1549 | H11: ='CRO2_Ins-Mes'!E32 -> 5 | I11: ='CRO2_Ins-Mes'!E49 -> 2 | J11: ='CRO2_Ins-Mes'!E63 -> 0
B12: Técnico em Ação Social | C12: mês | D12: 14 | E12: =PFP!H15 -> 3264.91 | F12: =PFP!I15 -> 7035.55 | G12: =PFP!J15 -> 2.1549 | H12: ='CRO2_Ins-Mes'!E33 -> 10 | I12: ='CRO2_Ins-Mes'!E50 -> 4 | J12: ='CRO2_Ins-Mes'!E64 -> 0
A13: =PFP!C16 -> T1 | B13: =PFP!E16 -> Técnico de projetos/obra (P8147) | C13: mês | D13: 17 | E13: =PFP!H16 -> 3184.9 | F13: =PFP!I16 -> 6863.14 | G13: =PFP!J16 -> 2.1549 | H13: ='CRO2_Ins-Mes'!E34 -> 10 | I13: ='CRO2_Ins-Mes'!E51 -> 4 | J13: ='CRO2_Ins-Mes'!E65 -> 3
A14: =PFP!C17 -> D | B14: =PFP!E17 -> Desenhista (40807) ** | C14: mês | D14: 7.5 | E14: =PFP!H17 -> 3886.55 | F14: =PFP!I17 -> 4725.27 | G14: =PFP!J17 -> 1.2158 | H14: ='CRO2_Ins-Mes'!E35 -> 2.5 | I14: ='CRO2_Ins-Mes'!E52 -> 2 | J14: ='CRO2_Ins-Mes'!E66 -> 3
A15: =PFP!C18 -> A1 | B15: =PFP!E18 -> Secretária (P8135) | C15: mês | D15: 3.75 | E15: =PFP!H18 -> 2697.38 | F15: =PFP!I18 -> 5812.58 | G15: =PFP!J18 -> 2.1549 | H15: ='CRO2_Ins-Mes'!E36 -> 1.25 | I15: ='CRO2_Ins-Mes'!E53 -> 1 | J15: ='CRO2_Ins-Mes'!E67 -> 1.5
A16: =PFP!C19 -> ECA | B16: =PFP!E19 -> Encargos Comp. e Adicionais | C16: mês | D16: 96 | E16: =PFP!H19 -> 1079.599091 | F16: =PFP!I19 -> 1312.58 | G16: =PFP!J19 -> 1.2158 | H16: =SUM(H5:H15) -> 33.75 | I16: 39 | J16: =SUM(J5:J15) -> 23.25
A17: =PFP!C20 -> AT2 | B17: =PFP!E20 -> Auxilio Transporte Técnicos | C17: mês | D17: 17 | E17: =PFP!H20 -> Já incluso* | F17: =PFP!I20 -> 0 | G17: =PFP!J20 -> 1.2158 | H17: =H13 -> 10 | I17: 4 | J17: =J13 -> 3
A18: =PFP!C21 -> AT3 | B18: =PFP!E21 -> Auxilio Transporte Secretária | C18: mês | D18: 3.75 | E18: =PFP!H21 -> Já Incluso* | F18: =PFP!I21 -> 0 | G18: =PFP!J21 -> 1.2158 | H18: =H15 -> 1.25 | I18: 1 | J18: =J15 -> 1.5
A19: =PFP!C22 -> M1 | B19: =PFP!E22 -> Relatório Parcial | C19: un | D19: 0 | E19: =PFP!H22 -> 51.3 | F19: =PFP!I22 -> 62.37 | G19: =PFP!J22 -> 1.2158 | H19: ='CRO2_Ins-Mes'!E37 -> 0 | I19: ='CRO2_Ins-Mes'!E54 -> 0 | J19: ='CRO2_Ins-Mes'!E68 -> 0
A20: =PFP!C23 -> M2 | B20: =PFP!E23 -> Relatório Final | C20: un | D20: 3 | E20: =PFP!H23 -> 1502.05 | F20: =PFP!I23 -> 1826.19 | G20: =PFP!J23 -> 1.2158 | H20: ='CRO2_Ins-Mes'!E38 -> 1 | I20: ='CRO2_Ins-Mes'!E55 -> 1 | J20: ='CRO2_Ins-Mes'!E69 -> 1
A21: =PFP!C24 -> TOP | B21: =PFP!E24 -> Total Serviços Cartográficos | C21: un | D21: 1 | E21: =PFP!H24 -> - | F21: =PFP!I24 -> 154337.2216 | G21: =PFP!J24 -> - | H21: ='CRO2_Ins-Mes'!E39 -> 1 | I21: 0 | J21: 0
A22: =PFP!C25 -> GEO | B22: =PFP!E25 -> Total Serviços Geotécnicos | C22: un | D22: 1 | E22: =PFP!H25 -> - | F22: =PFP!I25 -> 225909.1087 | G22: =PFP!J25 -> - | H22: ='CRO2_Ins-Mes'!E40 -> 1 | I22: 0 | J22: 0
A23: =PFP!C26 -> PED | B23: =PFP!E26 -> Total Serviços Pedológicos | C23: un | D23: 1 | E23: =PFP!H26 -> - | F23: =PFP!I26 -> 563602.9707 | H23: ='CRO2_Ins-Mes'!E41 -> 1 | I23: 0 | J23: 0
B24: =PFP!E27 -> Total Equipamento para Ambiental | C24: mês | D24: 1 | E24: =PFP!H27 -> 2884.47 | F24: =PFP!I27 -> 3506.94 | G24: =PFP!J27 -> 1.2158 | H24: 0 | I24: 1 | J24: 0
A25: =PFP!C28 -> GEO | B25: =PFP!E28 -> Total Recursos Gerais | C25: un | D25: 1 | E25: =PFP!H28 -> 102495.6012 | F25: =PFP!I28 -> 124614.15 | G25: =PFP!J28 -> 1.2158 | H25: =1/3 -> 0.3333333333 | I25: =1/3 -> 0.3333333333 | J25: =1/3 -> 0.3333333333
A26: TOTAL | B26: VALOR TOTAL POR PRODUTO | C26: R$ | D26: =SUM(H26:J26) -> 2687886.973 | H26: =(H5*$F$5+H6*$F$6+H7*$F$7+H8*$F$8+H13*$F$13+H14*$F$14+H15*$F$15+H16*$F$16+H17*$F$17+H18*$F$18+H19*$F$19+H20*$F$20+H21*$F$21+H25*$F$25+F22*H22+F23*H23+F11*H11+F12*H12) -> 1363178.616 | I26: =(I5*$F$5+I6*$F$6+I7*$F$7+I8*$F$8+I13*$F$13+I14*$F$14+I15*$F$15+I16*$F$16+I17*$F$17+I18*$F$18+I19*$F$19+I20*$F$20+I21*$F$21+I25*$F$25+F24*I24+F9*I9+F10*I10+F11*I11+F12*I12) -> 799425.79 | J26: =(J5*$F$5+J6*$F$6+J7*$F$7+J8*$F$8+J13*$F$13+J14*$F$14+J15*$F$15+J16*$F$16+J17*$F$17+J18*$F$18+J19*$F$19+J20*$F$20+J21*$F$21+J25*$F$25) -> 525282.5675
C27: % | D27: =SUM(H27:J27) -> 1.00001 | H27: =ROUND(H26/$D$26,5) -> 0.50716 | I27: =ROUND(I26/$D$26,5) -> 0.29742 | J27: =ROUND(J26/$D$26,5) -> 0.19543
A90: OBSERVAÇÃO:
A91: P - Profissionais nível superior nas áreas de Engenharia, Química, Arquitetura, Agronomia e Veterinária, conforme disposições da Lei 4.950-A/66
A92: T - Profissionais de nível médio técnico nas diversas áreas de atuação
A93: A - Profissionais de nível médio de apoio técnico-administrativo

Sheet CRO2_Ins-Mes
A1: CRONOGRAMA SIMPLIFICADO
A3: Cod1 | B3: Cod2 | C3: Produtos | D3: Uni | E3: Qde | F3: 1 | G3: 2 | H3: 3 | I3: 4 | J3: 5 | K3: 6 | L3: 7 | M3: 8 | N3: 9 | O3: 10 | P3: 11 | Q3: 12
A4: 2 | B4: 2.1 | C4: Serviços Topográficos/Cartográficos | D4: mês | E4: =SUM(F4:M4) -> 5 | F4: 1 | G4: 1 | H4: 1 | I4: 1 | J4: 1
A5: 2 | B5: 2.2 | C5: Serviços Geológicos/Geotécnicos | D5: mês | E5: 5 | F5: 1 | G5: 1 | H5: 1 | I5: 1 | J5: 1
A6: 2 | B6: 2.3 | C6: Serviços Pedológicos | D6: mês | E6: 5 | F6: 1 | G6: 1 | H6: 1 | I6: 1 | J6: 1
A7: 2 | B7: 2.4 | C7: Estudos Hidrológicos e Hidrogeológicos | D7: mês | E7: 5 | F7: 1 | G7: 1 | H7: 1 | I7: 1 | J7: 1
A8: 2 | B8: 2.5 | C8: Avaliação Fundiária | D8: mês | E8: 5 | F8: 1 | G8: 1 | H8: 1 | I8: 1 | J8: 1
A9: 2 | B9: 2 | C9: Estudos Básicos (EB) | D9: mês | E9: =SUM(F9:Q9) -> 5 | F9: =SUBTOTAL(4,F4:F8) -> 1 | G9: =SUBTOTAL(4,G4:G8) -> 1 | H9: 1 | I9: 1 | J9: 1
A10: 3 | B10: 3.1 | C10: Estudo de Aproveitamento de Recursos Hídricos | D10: mês | E10: =SUM(F10:Q10) -> 4 | K10: 1 | L10: 1 | M10: 1 | N10: 1
A11: 3 | B11: 3.2 | C11: Dignóstico e Prognóstico | D11: mês | E11: 4 | K11: 1 | L11: 1 | M11: 1 | N11: 1
A12: 3 | B12: 3.3 | C12: Análise da Viabilidade Ambiental | D12: mês | E12: =SUM(F12:Q12) -> 4 | K12: 1 | L12: 1 | M12: 1 | N12: 1
A13: 3 | B13: 3.4 | C13: Avaliação Socioeconômica | D13: mês | E13: =SUM(F13:Q13) -> 4 | K13: 1 | L13: 1 | M13: 1 | N13: 1
A14: 3 | B14: 3.5 | C14: Análise Técnica-Econômica-Ambiental | D14: mês | E14: 4 | K14: 1 | L14: 1 | M14: 1 | N14: 1
A15: 3 | B15: 3.6 | C15: Relatório de Atividade Social | D15: mês | E15: 4 | K15: 1 | L15: 1 | M15: 1 | N15: 1
A16: 3 | B16: 3 | C16: Estudo de Viabilidade Técnica, Econômica e Ambiental (EVTEA) | D16: mês | E16: =SUM(F16:Q16) -> 4 | F16: =SUBTOTAL(4,F10:F14) -> 0 | G16: 0 | H16: 0 | I16: 0 | J16: 0 | K16: =SUBTOTAL(4,K10:K15) -> 1 | L16: =SUBTOTAL(4,L10:L15) -> 1 | M16: =SUBTOTAL(4,M10:M15) -> 1 | N16: 1 | O16: 0 | P16: 0 | Q16: 0
A17: 4 | B17: 4.1 | C17: Descrição dos Serviços e Referências das Especificações | D17: mês | E17: =SUM(F17:Q17) -> 3 | O17: 1 | P17: 1 | Q17: 1
A18: 4 | B18: 4.2 | C18: Memorial de Cálculo e Memorial Descritivo das Obras | D18: mês | E18: =SUM(F18:Q18) -> 3 | O18: 1 | P18: 1 | Q18: 1
A19: 4 | B19: 4.3 | C19: Concepção e Estudo das Obras Civil | D19: mês | E19: 3 | O19: 1 | P19: 1 | Q19: 1
A20: 4 | B20: 4.4 | C20: Estudo Hidromecânico | D20: mês | E20: 3 | O20: 1 | P20: 1 | Q20: 1
A21: 4 | B21: 4.5 | C21: Orçamento Geral das Obras e Serviços | D21: mês | E21: 3 | O21: 1 | P21: 1 | Q21: 1
A22: 4 | B22: 4.6 | C22: Plano de Execução das Obras | D22: mês | E22: 3 | O22: 1 | P22: 1 | Q22: 1
A23: 4 | B23: 4 | C23: Consolidação do Anteprojeto de Engenharia (APE) | D23: mês | E23: =SUM(F23:Q23) -> 3 | F23: =SUBTOTAL(4,F17:F22) -> 0 | G23: 0 | H23: 0 | I23: 0 | J23: 0 | K23: 0 | L23: 0 | M23: 0 | N23: 0 | O23: 1 | P23: =SUBTOTAL(4,P17:P22) -> 1 | Q23: =SUBTOTAL(4,Q17:Q22) -> 1
A24: Total | B24: Total | C24: Balanço Temporal | D24: mês | E24: =SUM(F24:Q24) -> 12 | F24: =SUBTOTAL(4,F4:F23) -> 1 | G24: 1 | H24: 1 | I24: 1 | J24: 1 | K24: 1 | L24: 1 | M24: 1 | N24: 1 | O24: 1 | P24: 1 | Q24: 1
A25: Cod1 | B25: Cod2 | C25: Insumos | D25: Uni | E25: Qde | F25: 1 | G25: 2 | H25: 3 | I25: 4 | J25: 5 | K25: 6 | L25: 7 | M25: 8 | N25: 9 | O25: 10 | P25: 11 | Q25: 12
A26: 2 | B26: =PFP!C8 -> P0 | C26: =PFP!E8 -> Engenheiro coordenador (P8061) | D26: =PFP!F8 -> mês | E26: =SUM(F26:Q26) -> 1.25 | F26: 0.25 | G26: 0.25 | H26: 0.25 | I26: 0.25 | J26: 0.25
A27: 2 | B27: =PFP!C9 -> P1 | C27: =PFP!E9 -> Engenheiro sênior (P8067) | D27: =PFP!F9 -> mês | E27: 1.25 | F27: 0.25 | G27: 0.25 | H27: 0.25 | I27: 0.25 | J27: 0.25
A28: 2 | B28: =PFP!C10 -> P2 | C28: =PFP!E10 -> Engenheiro pleno (P8066) | D28: =PFP!F10 -> mês | E28: 1.25 | F28: 0.25 | G28: 0.25 | H28: 0.25 | I28: 0.25 | J28: 0.25
A29: 2 | B29: =PFP!C11 -> P3 | C29: =PFP!E11 -> Engenheiro júnior (P8065) | D29: =PFP!F11 -> mês | E29: 1.25 | F29: 0.25 | G29: 0.25 | H29: 0.25 | I29: 0.25 | J29: 0.25 | M29: =M28/2 -> 0
A30: 2 | C30: Economista | D30: =PFP!F12 -> mês | E30: 0
A31: 2 | C31: Advogado | D31: =PFP!F13 -> mês | E31: 0
A32: 2 | C32: Assistente Social | D32: =PFP!F14 -> mês | E32: 5 | F32: 1 | G32: 1 | H32: 1 | I32: 1 | J32: 1
A33: 2 | C33: Técnico em Ação Social | D33: =PFP!F15 -> mês | E33: 10 | F33: 2 | G33: 2 | H33: 2 | I33: 2 | J33: 2
A34: 2 | B34: =PFP!C16 -> T1 | C34: =PFP!E16 -> Técnico de projetos/obra (P8147) | D34: =PFP!F16 -> mês | E34: 10 | F34: 2 | G34: 2 | H34: 2 | I34: 2 | J34: 2
A35: 2 | B35: =PFP!C17 -> D | C35: =PFP!E17 -> Desenhista (40807) ** | D35: =PFP!F17 -> mês | E35: 2.5 | F35: 0.5 | G35: 0.5 | H35: 0.5 | I35: 0.5 | J35: 0.5
A36: 2 | B36: =PFP!C18 -> A1 | C36: =PFP!E18 -> Secretária (P8135) | D36: =PFP!F18 -> mês | E36: 1.25 | F36: 0.25 | G36: 0.25 | H36: 0.25 | I36: 0.25 | J36: 0.25 | K36: =K26 -> 0
A37: 2 | B37: =PFP!C22 -> M1 | C37: =PFP!E22 -> Relatório Parcial | D37: =PFP!F22 -> un | E37: 0
A38: 2 | B38: =PFP!C23 -> M2 | C38: =PFP!E23 -> Relatório Final | D38: =PFP!F23 -> un | E38: 1 | J38: 1
A39: 2 | B39: =PFP!C24 -> TOP | C39: =PFP!E24 -> Total Serviços Cartográficos | D39: =PFP!F24 -> un | E39: 1 | J39: 1
A40: 2 | B40: =PFP!C25 -> GEO | C40: =PFP!E25 -> Total Serviços Geotécnicos | D40: =PFP!F25 -> un | E40: 1 | J40: 1
A41: 2 | B41: =PFP!C26 -> PED | C41: =PFP!E26 -> Total Serviços Pedológicos | D41: =PFP!F26 -> un | E41: 1 | J41: 1
A42: 2 | C42: Estudos Básicos (EB)
A43: 3 | B43: =PFP!C8 -> P0 | C43: =PFP!E8 -> Engenheiro coordenador (P8061) | D43: =PFP!F8 -> mês | E43: =SUM(F43:Q43) -> 1 | K43: 0.25 | L43: 0.25 | M43: 0.25 | N43: 0.25
A44: 3 | B44: =PFP!C9 -> P1 | C44: =PFP!E9 -> Engenheiro sênior (P8067) | D44: =PFP!F9 -> mês | E44: 4 | K44: 1 | L44: 1 | M44: 1 | N44: 1
A45: 3 | B45: =PFP!C10 -> P2 | C45: =PFP!E10 -> Engenheiro pleno (P8066) | D45: =PFP!F10 -> mês | E45: 6 | K45: 1.5 | L45: 1.5 | M45: 1.5 | N45: 1.5
A46: 3 | B46: =PFP!C11 -> P3 | C46: =PFP!E11 -> Engenheiro júnior (P8065) | D46: =PFP!F11 -> mês | E46: 10 | K46: 2.5 | L46: 2.5 | M46: 2.5 | N46: 2.5
A47: 3 | C47: Economista | D47: mês | E47: 4 | K47: 1 | L47: 1 | M47: 1 | N47: 1
A48: 3 | C48: Advogado | D48: mês | E48: 1 | K48: 0.25 | L48: 0.25 | M48: 0.25 | N48: 0.25
A49: 3 | C49: Assistente Social | D49: mês | E49: 2 | K49: 0.5 | L49: 0.5 | M49: 0.5 | N49: 0.5
A50: 3 | C50: Técnico em Ação Social | D50: mês | E50: 4 | K50: 1 | L50: 1 | M50: 1 | N50: 1
A51: 3 | B51: =PFP!C16 -> T1 | C51: =PFP!E16 -> Técnico de projetos/obra (P8147) | D51: =PFP!F16 -> mês | E51: 4 | K51: 1 | L51: 1 | M51: 1 | N51: 1
A52: 3 | B52: =PFP!C17 -> D | C52: =PFP!E17 -> Desenhista (40807) ** | D52: =PFP!F17 -> mês | E52: 2 | K52: 0.5 | L52: 0.5 | M52: 0.5 | N52: 0.5
A53: 3 | B53: =PFP!C18 -> A1 | C53: =PFP!E18 -> Secretária (P8135) | D53: =PFP!F18 -> mês | E53: 1 | K53: =K43 -> 0.25 | L53: 0.25 | M53: 0.25 | N53: =N43 -> 0.25
A54: 3 | B54: =PFP!C19 -> ECA | C54: =PFP!E22 -> Relatório Parcial | D54: un | E54: 0
A55: 3 | B55: =PFP!C20 -> AT2 | C55: =PFP!E23 -> Relatório Final | D55: un | E55: 1 | N55: 1
A56: 3 | C56: Estudo de Viabilidade Técnica, Econômica e Ambiental (EVTEA)
A57: 4 | B57: =PFP!C8 -> P0 | C57: =PFP!E8 -> Engenheiro coordenador (P8061) | D57: =PFP!F8 -> mês | E57: =SUM(F57:Q57) -> 0.75 | O57: 0.25 | P57: 0.25 | Q57: 0.25
A58: 4 | B58: =PFP!C9 -> P1 | C58: =PFP!E9 -> Engenheiro sênior (P8067) | D58: =PFP!F9 -> mês | E58: =SUM(F58:Q58) -> 3 | O58: 1 | P58: 1 | Q58: 1
A59: 4 | B59: =PFP!C10 -> P2 | C59: =PFP!E10 -> Engenheiro pleno (P8066) | D59: =PFP!F10 -> mês | E59: =SUM(F59:Q59) -> 4.5 | O59: 1.5 | P59: 1.5 | Q59: 1.5
A60: 4 | B60: =PFP!C11 -> P3 | C60: =PFP!E11 -> Engenheiro júnior (P8065) | D60: =PFP!F11 -> mês | E60: =SUM(F60:Q60) -> 7.5 | O60: 2.5 | P60: 2.5 | Q60: 2.5
A61: 4 | C61: Economista | D61: =PFP!F16 -> mês | E61: =SUM(F61:Q61) -> 0
A62: 4 | C62: Advogado | D62: =PFP!F13 -> mês
A63: 4 | C63: Assistente Social | D63: =PFP!F18 -> mês
A64: 4 | C64: Técnico em Ação Social | D64: =PFP!F15 -> mês
A65: 4 | B65: =PFP!C16 -> T1 | C65: =PFP!E16 -> Técnico de projetos/obra (P8147) | D65: =PFP!F16 -> mês | E65: =SUM(F65:Q65) -> 3 | O65: 1 | P65: 1 | Q65: 1
A66: 4 | B66: =PFP!C17 -> D | C66: =PFP!E17 -> Desenhista (40807) ** | D66: =PFP!F17 -> mês | E66: =SUM(F66:Q66) -> 3 | O66: 1 | P66: 1 | Q66: 1
A67: 4 | B67: =PFP!C18 -> A1 | C67: =PFP!E18 -> Secretária (P8135) | D67: =PFP!F18 -> mês | E67: =SUM(F67:Q67) -> 1.5 | O67: 0.5 | P67: 0.5 | Q67: 0.5
A68: 4 | B68: =PFP!C22 -> M1 | C68: =PFP!E22 -> Relatório Parcial | D68: =PFP!F22 -> un | E68: =SUM(F68:Q68) -> 0
A69: 4 | B69: =PFP!C23 -> M2 | C69: =PFP!E23 -> Relatório Final | D69: =PFP!F23 -> un | E69: =SUM(F69:Q69) -> 1 | Q69: 1
A70: 4 | C70: Consolidação do Anteprojeto de Engenharia (APE)
A71: Total | C71: Balanço de Insumos | F71: =SUBTOTAL(2,F26:F70) -> 9 | G71: 9 | H71: 9 | I71: 9 | J71: 13 | K71: 12 | L71: 11 | M71: 12 | N71: 12 | O71: 7 | P71: 7 | Q71: 8

Sheet Cronograma Físico-Financeiro
B1: CRONOGRAMA FÍSICO-FINANCEIRO
D4: Mês 1 | E4: Mês 2 | F4: Mês 3 | G4: Mês 4 | H4: Mês 5 | I4: Mês 6 | J4: Mês 7 | K4: Mês 8 | L4: Mês 9 | M4: Mês 10 | N4: Mês 11 | O4: Mês 12
B5: Estudos Básicos (EB) | C5: ='CRO1_Ins-Pro'!H26 -> 1363178.616 | D5: =D6*$C$5 -> 272635.7232 | E5: 272635.7232 | F5: 272635.7232 | G5: 272635.7232 | H5: 272635.7232 | I5: 0 | J5: 0 | K5: 0 | L5: 0 | M5: 0 | N5: 0 | O5: 0 | P5: =SUM(D5:O5) -> 1363178.616
D6: 0.2 | E6: 0.2 | F6: 0.2 | G6: 0.2 | H6: 0.2 | P6: 1
B7: Estudo de Viabilidade Técnica, Econômica e Ambiental (EVTEA) | C7: ='CRO1_Ins-Pro'!I26 -> 799425.79 | D7: =D8*$C$7 -> 0 | E7: 0 | F7: 0 | G7: 0 | H7: 0 | I7: 199856.4475 | J7: 199856.4475 | K7: 199856.4475 | L7: 199856.4475 | M7: 0 | N7: 0 | O7: 0 | P7: 799425.79
I8: 0.25 | J8: 0.25 | K8: 0.25 | L8: 0.25 | P8: 1
B9: Projeto Básico (PB) | C9: ='CRO1_Ins-Pro'!J26 -> 525282.5675 | D9: =D10*$C$9 -> 0 | E9: 0 | F9: 0 | G9: 0 | H9: 0 | I9: 0 | J9: 0 | K9: 0 | L9: 0 | M9: 157584.7703 | N9: 157584.7703 | O9: 210113.027 | P9: 525282.5675
M10: 0.3 | N10: 0.3 | O10: 0.4 | P10: 1
B12: NO MÊS | D12: =D5+D7+D9 -> 272635.7232 | E12: 272635.7232 | F12: 272635.7232 | G12: 272635.7232 | H12: 272635.7232 | I12: 199856.4475 | J12: 199856.4475 | K12: 199856.4475 | L12: =L5+L7+L9 -> 199856.4475 | M12: 157584.7703 | N12: 157584.7703 | O12: 210113.027 | P12: =SUM(D12:O12) -> 2687886.973
D13: =D12/SUM($C$5:$C$10) -> 0.1014312454 | E13: 0.1014312454 | F13: 0.1014312454 | G13: 0.1014312454 | H13: 0.1014312454 | I13: 0.07435448346 | J13: 0.07435448346 | K13: 0.07435448346 | L13: =L12/SUM($C$5:$C$10) -> 0.07435448346 | M13: 0.05862775176 | N13: 0.05862775176 | O13: 0.07817033568 | P13: =SUM(D13:O13) -> 1
C14: DESEMBOLSO (80% do Subproduto) | D14: =D12*0.8 -> 218108.5786 | E14: =E12*0.8 -> 218108.5786 | F14: 218108.5786 | G14: 218108.5786 | H14: =H12*0.8+(P5*0.2) -> 490744.3018 | I14: 159885.158 | J14: 159885.158 | K14: 159885.158 | L14: =L12*0.8+(P7*0.2) -> 319770.316 | M14: 126067.8162 | N14: 126067.8162 | O14: =O12*0.8+(P9*0.2) -> 273146.9351 | P14: =SUM(D14:O14) -> 2687886.973
D15: =D14/SUM($C$5,$C$7,$C$9) -> 0.08114499631 | E15: =E14/SUM($C$5,$C$7,$C$9) -> 0.08114499631 | F15: 0.08114499631 | G15: 0.08114499631 | H15: 0.1825762417 | I15: 0.05948358676 | J15: 0.05948358676 | K15: 0.05948358676 | L15: 0.1189671735 | M15: 0.04690220141 | N15: 0.04690220141 | O15: 0.1016214364 | P15: =SUM(D15:O15) -> 1
B16: ACUMULADO | D16: =D14 -> 218108.5786 | E16: =D16+E14 -> 436217.1571 | F16: =E16+F14 -> 654325.7357 | G16: 872434.3142 | H16: 1363178.616 | I16: 1523063.774 | J16: 1682948.932 | K16: 1842834.09 | L16: =K16+L14 -> 2162604.406 | M16: =L16+M14 -> 2288672.222 | N16: =M16+N14 -> 2414740.038 | O16: =N16+O14 -> 2687886.973
D17: =D13 -> 0.1014312454 | E17: =D17+E13 -> 0.2028624908 | F17: 0.3042937362 | G17: 0.4057249816 | H17: 0.507156227 | I17: 0.5815107104 | J17: 0.6558651939 | K17: 0.7302196773 | L17: =K17+L13 -> 0.8045741608 | M17: =L17+M13 -> 0.8632019126 | N17: =M17+N13 -> 0.9218296643 | O17: =N17+O13 -> 1

Sheet MDO DNIT-jul2024
A1: Código | B1: Categoria | C1: Unid. | D1: Salário | E1: Encargos Sociais | G1: Encargos Complementares | Q1: Encargos Adicionais | W1: Encargos Totais | Y1: Valor Total | Z1: Encargos adici + Compl
G2: Alimentação | I2: EPI | K2: Ferramenta | M2: Transporte | O2: Exame Ocupacional | Q2: Cesta Básica | S2: Assistência Médica | U2: Seguro de Vida
D3: R$ | E3: % | F3: R$ | G3: % | H3: R$ | I3: % | J3: R$ | K3: % | L3: R$ | M3: % | N3: R$ | O3: % | P3: R$ | Q3: % | R3: R$ | S3: % | T3: R$ | U3: % | V3: R$ | W3: % | X3: R$ | Y3: R$ | Z3: R$
A4: Profissionais mensalistas
A5: P8001 | B5: Advogado júnior | C5: mês | D5: 4616.38 | E5: 0.793 | F5: 3660.79 | G5: 0.1596 | H5: 736.74 | I5: 0.0055 | J5: 25.51 | K5: 0 | L5: 0 | M5: 0 | N5: 0 | O5: 0.0006 | P5: 2.95 | Q5: 0 | R5: 0 | S5: 0.064 | T5: 295.48 | U5: 0.0022 | V5: 9.98 | W5: 1.0249 | X5: 4731.45 | Y5: 9347.83 | Z5: =Y5-D5-F5 -> 1070.66
A6: P8002 | B6: Advogado pleno | C6: mês | D6: 6155.17 | E6: 0.793 | F6: 4881.05 | G6: 0.1197 | H6: 736.74 | I6: 0.0041 | J6: 25.51 | K6: 0 | L6: 0 | M6: 0 | N6: 0 | O6: 0.0005 | P6: 2.95 | Q6: 0 | R6: 0 | S6: 0.048 | T6: 295.48 | U6: 0.0016 | V6: 9.98 | W6: 0.9669 | X6: 5951.71 | Y6: 12106.89 | Z6: =Y6-D6-F6 -> 1070.67
A7: P8003 | B7: Advogado sênior | C7: mês | D7: 11441.04 | E7: 0.793 | F7: 9072.75 | G7: 0.0644 | H7: 736.74 | I7: 0.0022 | J7: 25.51 | K7: 0 | L7: 0 | M7: 0 | N7: 0 | O7: 0.0003 | P7: 2.95 | Q7: 0 | R7: 0 | S7: 0.0258 | T7: 295.48 | U7: 0.0009 | V7: 9.98 | W7: 0.8866 | X7: 10143.41 | Y7: 21584.45 | Z7: 1070.66
A8: P8007 | B8: Analista de desenvolvimento de sistemas júnior | C8: mês | D8: 4690.87 | E8: 0.7963 | F8: 3735.34 | G8: 0.1571 | H8: 736.74 | I8: 0 | J8: 0 | K8: 0 | L8: 0 | M8: 0 | N8: 0 | O8: 0.0008 | P8: 3.74 | Q8: 0 | R8: 0 | S8: 0.063 | T8: 295.48 | U8: 0.0021 | V8: 9.98 | W8: 1.0193 | X8: 4781.28 | Y8: 9472.16 | Z8: 1045.95
A9: P8008 | B9: Analista de desenvolvimento de sistemas pleno | C9: mês | D9: 5657.08 | E9: 0.7963 | F9: 4504.74 | G9: 0.1302 | H9: 736.74 | I9: 0 | J9: 0 | K9: 0 | L9: 0 | M9: 0 | N9: 0 | O9: 0.0007 | P9: 3.74 | Q9: 0 | R9: 0 | S9: 0.0522 | T9: 295.48 | U9: 0.0018 | V9: 9.98 | W9: 0.9812 | X9: 5550.68 | Y9: 11207.76 | Z9: 1045.94
A10: P8009 | B10: Analista de desenvolvimento de sistemas sênior | C10: mês | D10: 9897.56 | E10: 0.7963 | F10: 7881.43 | G10: 0.0744 | H10: 736.74 | I10: 0 | J10: 0 | K10: 0 | L10: 0 | M10: 0 | N10: 0 | O10: 0.0004 | P10: 3.74 | Q10: 0 | R10: 0 | S10: 0.0299 | T10: 295.48 | U10: 0.001 | V10: 9.98 | W10: 0.902 | X10: 8927.37 | Y10: 18824.92 | Z10: 1045.93
A11: P8013 | B11: Arquiteto júnior | C11: mês | D11: 12002 | E11: 0.7932 | F11: 9519.99 | G11: 0.0614 | H11: 736.74 | I11: 0.0021 | J11: 25.51 | K11: 0 | L11: 0 | M11: 0 | N11: 0 | O11: 0.0002 | P11: 2.61 | Q11: 0 | R11: 0 | S11: 0.0246 | T11: 295.48 | U11: 0.0008 | V11: 9.98 | W11: 0.8824 | X11: 10590.31 | Y11: 22592.31 | Z11: 1070.32
A12: P8014 | B12: Arquiteto pleno | C12: mês | D12: 12521.12 | E12: 0.7932 | F12: 9931.75 | G12: 0.0588 | H12: 736.74 | I12: 0.002 | J12: 25.51 | K12: 0 | L12: 0 | M12: 0 | N12: 0 | O12: 0.0002 | P12: 2.61 | Q12: 0 | R12: 0 | S12: 0.0236 | T12: 295.48 | U12: 0.0008 | V12: 9.98 | W12: 0.8787 | X12: 11002.08 | Y12: 23523.2 | Z12: 1070.33
A13: P8015 | B13: Arquiteto sênior | C13: mês | D13: 15280.37 | E13: 0.7932 | F13: 12120.39 | G13: 0.0482 | H13: 736.74 | I13: 0.0017 | J13: 25.51 | K13: 0 | L13: 0 | M13: 0 | N13: 0 | O13: 0.0002 | P13: 2.61 | Q13: 0 | R13: 0 | S13: 0.0193 | T13: 295.48 | U13: 0.0007 | V13: 9.98 | W13: 0.8632 | X13: 13190.72 | Y13: 28471.09 | Z13: 1070.33
A14: P8019 | B14: Assistente social júnior | C14: mês | D14: 3264.91 | E14: 0.8016 | F14: 2617.15 | G14: 0.2257 | H14: 736.74 | I14: 0.0078 | J14: 25.51 | K14: 0 | L14: 0 | M14: 0.0071 | N14: 23.14 | O14: 0.0013 | P14: 4.29 | Q14: 0 | R14: 0 | S14: 0.0905 | T14: 295.48 | U14: 0.0031 | V14: 9.98 | W14: 1.137 | X14: 3712.3 | Y14: 6977.21 | Z14: 1095.15
A15: P8020 | B15: Assistente social pleno | C15: mês | D15: 4353.21 | E15: 0.8016 | F15: 3489.54 | G15: 0.1692 | H15: 736.74 | I15: 0.0059 | J15: 25.51 | K15: 0 | L15: 0 | M15: 0 | N15: 0 | O15: 0.001 | P15: 4.29 | Q15: 0 | R15: 0 | S15: 0.0679 | T15: 295.48 | U15: 0.0023 | V15: 9.98 | W15: 1.0479 | X15: 4561.55 | Y15: 8914.76 | Z15: 1072.01
A16: P8021 | B16: Assistente social sênior | C16: mês | D16: 7202.11 | E16: 0.8016 | F16: 5773.22 | G16: 0.1023 | H16: 736.74 | I16: 0.0035 | J16: 25.51 | K16: 0 | L16: 0 | M16: 0 | N16: 0 | O16: 0.0006 | P16: 4.29 | Q16: 0 | R16: 0 | S16: 0.041 | T16: 295.48 | U16: 0.0014 | V16: 9.98 | W16: 0.9504 | X16: 6845.22 | Y16: 14047.34 | Z16: 1072.01
A17: P8025 | B17: Auxiliar | C17: mês | D17: 1583.76 | E17: 0.8156 | F17: 1291.72 | G17: 0.4652 | H17: 736.74 | I17: 0.0196 | J17: 31.06 | K17: 0.001 | L17: 1.59 | M17: 0.0783 | N17: 124.01 | O17: 0.0039 | P17: 6.15 | Q17: 0 | R17: 0 | S17: 0.1866 | T17: 295.48 | U17: 0.0063 | V17: 9.98 | W17: 1.5765 | X17: 2496.73 | Y17: 4080.5 | Z17: 1205.02
A18: P8026 | B18: Auxiliar administrativo | C18: mês | D18: 1880.26 | E18: 0.8017 | F18: 1507.4 | G18: 0.3918 | H18: 736.74 | I18: 0 | J18: 0 | K18: 0 | L18: 0 | M18: 0.0565 | N18: 106.22 | O18: 0.002 | P18: 3.76 | Q18: 0 | R18: 0 | S18: 0.1571 | T18: 295.48 | U18: 0.0053 | V18: 9.98 | W18: 1.4145 | X18: 2659.59 | Y18: 4539.85 | Z18: 1152.19
A19: P8027 | B19: Auxiliar de laboratório | C19: mês | D19: 1753.34 | E19: 0.8036 | F19: 1408.99 | G19: 0.4202 | H19: 736.74 | I19: 0.0177 | J19: 31.06 | K19: 0.0019 | L19: 3.28 | M19: 0.0649 | N19: 113.83 | O19: 0.0023 | P19: 4.02 | Q19: 0 | R19: 0 | S19: 0.1685 | T19: 295.48 | U19: 0.0057 | V19: 9.98 | W19: 1.4848 | X19: 2603.38 | Y19: 4356.73 | Z19: 1194.4
A20: P8028 | B20: Auxiliar de topografia | C20: mês | D20: 1583.76 | E20: 0.8062 | F20: 1276.83 | G20: 0.4652 | H20: 736.74 | I20: 0.0196 | J20: 31.06 | K20: 0.0009 | L20: 1.39 | M20: 0.0783 | N20: 124.01 | O20: 0.0028 | P20: 4.39 | Q20: 0 | R20: 0 | S20: 0.1866 | T20: 295.48 | U20: 0.0063 | V20: 9.98 | W20: 1.5658 | X20: 2479.88 | Y20: 4063.64 | Z20: 1203.05
A21: P8032 | B21: Biólogo júnior | C21: mês | D21: 3224.68 | E21: 0.797 | F21: 2570.07 | G21: 0.2285 | H21: 736.74 | I21: 0.0079 | J21: 25.51 | K21: 0 | L21: 0 | M21: 0.0079 | N21: 25.55 | O21: 0.0011 | P21: 3.6 | Q21: 0 | R21: 0 | S21: 0.0916 | T21: 295.48 | U21: 0.0031 | V21: 9.98 | W21: 1.1371 | X21: 3666.94 | Y21: 6891.62 | Z21: 1096.87
A22: P8033 | B22: Biólogo pleno | C22: mês | D22: 4299.57 | E22: 0.797 | F22: 3426.76 | G22: 0.1714 | H22: 736.74 | I22: 0.0059 | J22: 25.51 | K22: 0 | L22: 0 | M22: 0 | N22: 0 | O22: 0.0008 | P22: 3.6 | Q22: 0 | R22: 0 | S22: 0.0687 | T22: 295.48 | U22: 0.0023 | V22: 9.98 | W22: 1.0462 | X22: 4498.08 | Y22: 8797.65 | Z22: 1071.32
A23: P8034 | B23: Biólogo sênior | C23: mês | D23: 7659.98 | E23: 0.797 | F23: 6105.01 | G23: 0.0962 | H23: 736.74 | I23: 0.0033 | J23: 25.51 | K23: 0 | L23: 0 | M23: 0 | N23: 0 | O23: 0.0005 | P23: 3.6 | Q23: 0 | R23: 0 | S23: 0.0386 | T23: 295.48 | U23: 0.0013 | V23: 9.98 | W23: 0.9369 | X23: 7176.33 | Y23: 14836.31 | Z23: 1071.32
A24: P8038 | B24: Chefe de escritório | C24: mês | D24: 3337.76 | E24: 0.7939 | F24: 2649.85 | G24: 0.2207 | H24: 736.74 | I24: 0 | J24: 0 | K24: 0 | L24: 0 | M24: 0.0056 | N24: 18.77 | O24: 0.0008 | P24: 2.81 | Q24: 0 | R24: 0 | S24: 0.0885 | T24: 295.48 | U24: 0.003 | V24: 9.98 | W24: 1.1126 | X24: 3713.63 | Y24: 7051.4 | Z24: 1063.79
A25: P8040 | B25: Contador júnior | C25: mês | D25: 4191.21 | E25: 0.7936 | F25: 3326.15 | G25: 0.1758 | H25: 736.74 | I25: 0 | J25: 0 | K25: 0 | L25: 0 | M25: 0 | N25: 0 | O25: 0.0006 | P25: 2.69 | Q25: 0 | R25: 0 | S25: 0.0705 | T25: 295.48 | U25: 0.0024 | V25: 9.98 | W25: 1.0429 | X25: 4371.04 | Y25: 8562.25 | Z25: 1044.89
A26: P8041 | B26: Contador pleno | C26: mês | D26: 5588.28 | E26: 0.7936 | F26: 4434.86 | G26: 0.1318 | H26: 736.74 | I26: 0 | J26: 0 | K26: 0 | L26: 0 | M26: 0 | N26: 0 | O26: 0.0005 | P26: 2.69 | Q26: 0 | R26: 0 | S26: 0.0529 | T26: 295.48 | U26: 0.0018 | V26: 9.98 | W26: 0.9806 | X26: 5479.76 | Y26: 11068.04 | Z26: 1044.9
A27: P8042 | B27: Contador sênior | C27: mês | D27: 10788.12 | E27: 0.7936 | F27: 8561.45 | G27: 0.0683 | H27: 736.74 | I27: 0 | J27: 0 | K27: 0 | L27: 0 | M27: 0 | N27: 0 | O27: 0.0002 | P27: 2.69 | Q27: 0 | R27: 0 | S27: 0.0274 | T27: 295.48 | U27: 0.0009 | V27: 9.98 | W27: 0.8905 | X27: 9606.34 | Y27: 20394.46 | Z27: 1044.89
A28: P8044 | B28: Coordenador ambiental | C28: mês | D28: 18689.66 | E28: 0.7968 | F28: 14891.92 | G28: 0.0394 | H28: 736.74 | I28: 0.0012 | J28: 23.3 | K28: 0 | L28: 0 | M28: 0 | N28: 0 | O28: 0.0002 | P28: 3.98 | Q28: 0 | R28: 0 | S28: 0.0158 | T28: 295.48 | U28: 0.0005 | V28: 9.98 | W28: 0.854 | X28: 15961.41 | Y28: 34651.08 | Z28: 1069.5
A29: P8045 | B29: Economista júnior | C29: mês | D29: 4750.1 | E29: 0.7861 | F29: 3734.05 | G29: 0.1551 | H29: 736.74 | I29: 0 | J29: 0 | K29: 0 | L29: 0 | M29: 0 | N29: 0 | O29: 0.0004 | P29: 1.9 | Q29: 0 | R29: 0 | S29: 0.0622 | T29: 295.48 | U29: 0.0021 | V29: 9.98 | W29: 1.0059 | X29: 4778.15 | Y29: 9528.25 | Z29: 1044.1
A30: P8046 | B30: Economista pleno | C30: mês | D30: 6333.46 | E30: 0.7861 | F30: 4978.74 | G30: 0.1163 | H30: 736.74 | I30: 0 | J30: 0 | K30: 0 | L30: 0 | M30: 0 | N30: 0 | O30: 0.0003 | P30: 1.9 | Q30: 0 | R30: 0 | S30: 0.0467 | T30: 295.48 | U30: 0.0016 | V30: 9.98 | W30: 0.951 | X30: 6022.84 | Y30: 12356.3 | Z30: 1044.1
A31: P8047 | B31: Economista sênior | C31: mês | D31: 10433.39 | E31: 0.7861 | F31: 8201.69 | G31: 0.0706 | H31: 736.74 | I31: 0 | J31: 0 | K31: 0 | L31: 0 | M31: 0 | N31: 0 | O31: 0.0002 | P31: 1.9 | Q31: 0 | R31: 0 | S31: 0.0283 | T31: 295.48 | U31: 0.001 | V31: 9.98 | W31: 0.8862 | X31: 9245.79 | Y31: 19679.19 | Z31: 1044.11
A32: P8054 | B32: Engenheiro agrônomo júnior | C32: mês | D32: 12002 | E32: 0.7908 | F32: 9491.18 | G32: 0.0614 | H32: 736.74 | I32: 0.0021 | J32: 25.51 | K32: 0 | L32: 0 | M32: 0 | N32: 0 | O32: 0.0002 | P32: 2.5 | Q32: 0 | R32: 0 | S32: 0.0246 | T32: 295.48 | U32: 0.0008 | V32: 9.98 | W32: 0.88 | X32: 10561.4 | Y32: 22563.4 | Z32: 1070.22
A33: P8055 | B33: Engenheiro agrônomo pleno | C33: mês | D33: 12380.97 | E33: 0.7908 | F33: 9790.87 | G33: 0.0595 | H33: 736.74 | I33: 0.0021 | J33: 25.51 | K33: 0 | L33: 0 | M33: 0 | N33: 0 | O33: 0.0002 | P33: 2.5 | Q33: 0 | R33: 0 | S33: 0.0239 | T33: 295.48 | U33: 0.0008 | V33: 9.98 | W33: 0.8772 | X33: 10861.09 | Y33: 23242.06 | Z33: 1070.22
A34: P8056 | B34: Engenheiro agrônomo sênior | C34: mês | D34: 13631.64 | E34: 0.7908 | F34: 10779.9 | G34: 0.054 | H34: 736.74 | I34: 0.0019 | J34: 25.51 | K34: 0 | L34: 0 | M34: 0 | N34: 0 | O34: 0.0002 | P34: 2.5 | Q34: 0 | R34: 0 | S34: 0.0217 | T34: 295.48 | U34: 0.0007 | V34: 9.98 | W34: 0.8693 | X34: 11850.12 | Y34: 25481.76 | Z34: 1070.22
A35: P8057 | B35: Engenheiro ambiental júnior | C35: mês | D35: 12002 | E35: 0.7982 | F35: 9580 | G35: 0.0614 | H35: 736.74 | I35: 0.0021 | J35: 25.51 | K35: 0 | L35: 0 | M35: 0 | N35: 0 | O35: 0.0004 | P35: 4.35 | Q35: 0 | R35: 0 | S35: 0.0246 | T35: 295.48 | U35: 0.0008 | V35: 9.98 | W35: 0.8875 | X35: 10652.07 | Y35: 22654.07 | Z35: 1072.07
A36: P8058 | B36: Engenheiro ambiental pleno | C36: mês | D36: 12193.36 | E36: 0.7982 | F36: 9732.74 | G36: 0.0604 | H36: 736.74 | I36: 0.0021 | J36: 25.51 | K36: 0 | L36: 0 | M36: 0 | N36: 0 | O36: 0.0004 | P36: 4.35 | Q36: 0 | R36: 0 | S36: 0.0242 | T36: 295.48 | U36: 0.0008 | V36: 9.98 | W36: 0.8861 | X36: 10804.81 | Y36: 22998.17 | Z36: 1072.07
A37: P8059 | B37: Engenheiro ambiental sênior | C37: mês | D37: 14759.24 | E37: 0.7982 | F37: 11780.83 | G37: 0.0499 | H37: 736.74 | I37: 0.0017 | J37: 25.51 | K37: 0 | L37: 0 | M37: 0 | N37: 0 | O37: 0.0003 | P37: 4.35 | Q37: 0 | R37: 0 | S37: 0.02 | T37: 295.48 | U37: 0.0007 | V37: 9.98 | W37: 0.8708 | X37: 12852.9 | Y37: 27612.14 | Z37: 1072.07
A38: P8060 | B38: Engenheiro consultor especial | C38: mês | D38: 21827.91 | E38: 0.7976 | F38: 17409.94 | G38: 0.0338 | H38: 736.74 | I38: 0.0011 | J38: 23.3 | K38: 0 | L38: 0 | M38: 0 | N38: 0 | O38: 0.0002 | P38: 3.99 | Q38: 0 | R38: 0 | S38: 0.0135 | T38: 295.48 | U38: 0.0005 | V38: 9.98 | W38: 0.8466 | X38: 18479.44 | Y38: 40307.36 | Z38: 1069.51
A39: P8061 | B39: Engenheiro coordenador | C39: mês | D39: 18189.93 | E39: 0.7976 | F39: 14508.29 | G39: 0.0405 | H39: 736.74 | I39: 0.0013 | J39: 23.3 | K39: 0 | L39: 0 | M39: 0 | N39: 0 | O39: 0.0002 | P39: 3.99 | Q39: 0 | R39: 0 | S39: 0.0162 | T39: 295.48 | U39: 0.0005 | V39: 9.98 | W39: 0.8564 | X39: 15577.78 | Y39: 33767.71 | Z39: 1069.49
A40: P8062 | B40: Engenheiro de pesca júnior | C40: mês | D40: 12002 | E40: 0.8013 | F40: 9617.2 | G40: 0.0614 | H40: 736.74 | I40: 0.0021 | J40: 25.51 | K40: 0 | L40: 0 | M40: 0 | N40: 0 | O40: 0.0004 | P40: 4.74 | Q40: 0 | R40: 0 | S40: 0.0246 | T40: 295.48 | U40: 0.0008 | V40: 9.98 | W40: 0.8907 | X40: 10689.66 | Y40: 22691.66 | Z40: 1072.46
A41: P8063 | B41: Engenheiro de pesca pleno | C41: mês | D41: 12714.67 | E41: 0.8013 | F41: 10188.27 | G41: 0.0579 | H41: 736.74 | I41: 0.002 | J41: 25.51 | K41: 0 | L41: 0 | M41: 0 | N41: 0 | O41: 0.0004 | P41: 4.74 | Q41: 0 | R41: 0 | S41: 0.0232 | T41: 295.48 | U41: 0.0008 | V41: 9.98 | W41: 0.8856 | X41: 11260.73 | Y41: 23975.4 | Z41: 1072.46
A42: P8064 | B42: Engenheiro de pesca sênior | C42: mês | D42: 16261.81 | E42: 0.8013 | F42: 13030.59 | G42: 0.0453 | H42: 736.74 | I42: 0.0016 | J42: 25.51 | K42: 0 | L42: 0 | M42: 0 | N42: 0 | O42: 0.0003 | P42: 4.74 | Q42: 0 | R42: 0 | S42: 0.0182 | T42: 295.48 | U42: 0.0006 | V42: 9.98 | W42: 0.8673 | X42: 14103.05 | Y42: 30364.86 | Z42: 1072.46
A43: P8065 | B43: Engenheiro de projetos júnior | C43: mês | D43: 12002 | E43: 0.7976 | F43: 9572.8 | G43: 0.0614 | H43: 736.74 | I43: 0.0021 | J43: 25.51 | K43: 0 | L43: 0 | M43: 0 | N43: 0 | O43: 0.0003 | P43: 3.99 | Q43: 0 | R43: 0 | S43: 0.0246 | T43: 295.48 | U43: 0.0008 | V43: 9.98 | W43: 0.8869 | X43: 10644.5 | Y43: 22646.5 | Z43: 1071.7
A44: P8066 | B44: Engenheiro de projetos pleno | C44: mês | D44: 12629.6 | E44: 0.7976 | F44: 10073.37 | G44: 0.0583 | H44: 736.74 | I44: 0.002 | J44: 25.51 | K44: 0 | L44: 0 | M44: 0 | N44: 0 | O44: 0.0003 | P44: 3.99 | Q44: 0 | R44: 0 | S44: 0.0234 | T44: 295.48 | U44: 0.0008 | V44: 9.98 | W44: 0.8825 | X44: 11145.08 | Y44: 23774.68 | Z44: 1071.71
A45: P8067 | B45: Engenheiro de projetos sênior | C45: mês | D45: 15877.29 | E45: 0.7976 | F45: 12663.73 | G45: 0.0464 | H45: 736.74 | I45: 0.0016 | J45: 25.51 | K45: 0 | L45: 0 | M45: 0 | N45: 0 | O45: 0.0003 | P45: 3.99 | Q45: 0 | R45: 0 | S45: 0.0186 | T45: 295.48 | U45: 0.0006 | V45: 9.98 | W45: 0.8651 | X45: 13735.44 | Y45: 29612.73 | Z45: 1071.71
A46: P8068 | B46: Engenheiro florestal júnior | C46: mês | D46: 12002 | E46: 0.8013 | F46: 9617.2 | G46: 0.0614 | H46: 736.74 | I46: 0.0021 | J46: 25.51 | K46: 0 | L46: 0 | M46: 0 | N46: 0 | O46: 0.0004 | P46: 4.74 | Q46: 0 | R46: 0 | S46: 0.0246 | T46: 295.48 | U46: 0.0008 | V46: 9.98 | W46: 0.8907 | X46: 10689.66 | Y46: 22691.66 | Z46: 1072.46
A47: P8069 | B47: Engenheiro florestal pleno | C47: mês | D47: 12714.67 | E47: 0.8013 | F47: 10188.27 | G47: 0.0579 | H47: 736.74 | I47: 0.002 | J47: 25.51 | K47: 0 | L47: 0 | M47: 0 | N47: 0 | O47: 0.0004 | P47: 4.74 | Q47: 0 | R47: 0 | S47: 0.0232 | T47: 295.48 | U47: 0.0008 | V47: 9.98 | W47: 0.8856 | X47: 11260.73 | Y47: 23975.4 | Z47: 1072.46
A48: P8070 | B48: Engenheiro florestal sênior | C48: mês | D48: 16261.81 | E48: 0.8013 | F48: 13030.59 | G48: 0.0453 | H48: 736.74 | I48: 0.0016 | J48: 25.51 | K48: 0 | L48: 0 | M48: 0 | N48: 0 | O48: 0.0003 | P48: 4.74 | Q48: 0 | R48: 0 | S48: 0.0182 | T48: 295.48 | U48: 0.0006 | V48: 9.98 | W48: 0.8673 | X48: 14103.05 | Y48: 30364.86 | Z48: 1072.46
A49: P8080 | B49: Geólogo júnior | C49: mês | D49: 10004.5 | E49: 0.8008 | F49: 8011.6 | G49: 0.0677 | H49: 677.01 | I49: 0.0026 | J49: 25.51 | K49: 0 | L49: 0 | M49: 0 | N49: 0 | O49: 0.0003 | P49: 3.42 | Q49: 0 | R49: 0 | S49: 0.0295 | T49: 295.48 | U49: 0.001 | V49: 9.98 | W49: 0.9019 | X49: 9023.01 | Y49: 19027.51 | Z49: 1011.41
A50: P8081 | B50: Geólogo pleno | C50: mês | D50: 11911.59 | E50: 0.8008 | F50: 9538.8 | G50: 0.0568 | H50: 677.01 | I50: 0.0021 | J50: 25.51 | K50: 0 | L50: 0 | M50: 0 | N50: 0 | O50: 0.0003 | P50: 3.42 | Q50: 0 | R50: 0 | S50: 0.0248 | T50: 295.48 | U50: 0.0008 | V50: 9.98 | W50: 0.8857 | X50: 10550.2 | Y50: 22461.79 | Z50: 1011.4
A51: P8082 | B51: Geólogo sênior | C51: mês | D51: 13818.68 | E51: 0.8008 | F51: 11066 | G51: 0.049 | H51: 677.01 | I51: 0.0018 | J51: 25.51 | K51: 0 | L51: 0 | M51: 0 | N51: 0 | O51: 0.0002 | P51: 3.42 | Q51: 0 | R51: 0 | S51: 0.0214 | T51: 295.48 | U51: 0.0007 | V51: 9.98 | W51: 0.874 | X51: 12077.4 | Y51: 25896.07 | Z51: 1011.39
A52: P8092 | B52: Jornalista júnior | C52: mês | D52: 3073.16 | E52: 0.7955 | F52: 2444.7 | G52: 0.2397 | H52: 736.74 | I52: 0.0083 | J52: 25.51 | K52: 0 | L52: 0 | M52: 0.0113 | N52: 34.64 | O52: 0.0009 | P52: 2.68 | Q52: 0 | R52: 0 | S52: 0.0961 | T52: 295.48 | U52: 0.0032 | V52: 9.98 | W52: 1.1551 | X52: 3549.74 | Y52: 6622.9 | Z52: 1105.04
A53: P8093 | B53: Jornalista pleno | C53: mês | D53: 4097.55 | E53: 0.7955 | F53: 3259.6 | G53: 0.1798 | H53: 736.74 | I53: 0.0062 | J53: 25.51 | K53: 0 | L53: 0 | M53: 0 | N53: 0 | O53: 0.0007 | P53: 2.68 | Q53: 0 | R53: 0 | S53: 0.0721 | T53: 295.48 | U53: 0.0024 | V53: 9.98 | W53: 1.0567 | X53: 4330 | Y53: 8427.55 | Z53: 1070.4
A54: P8094 | B54: Jornalista sênior | C54: mês | D54: 7891.46 | E54: 0.7955 | F54: 6277.65 | G54: 0.0934 | H54: 736.74 | I54: 0.0032 | J54: 25.51 | K54: 0 | L54: 0 | M54: 0 | N54: 0 | O54: 0.0003 | P54: 2.68 | Q54: 0 | R54: 0 | S54: 0.0374 | T54: 295.48 | U54: 0.0013 | V54: 9.98 | W54: 0.9311 | X54: 7348.05 | Y54: 15239.51 | Z54: 1070.4
A55: P8098 | B55: Laboratorista | C55: mês | D55: 2337.79 | E55: 0.8036 | F55: 1878.65 | G55: 0.3151 | H55: 736.74 | I55: 0.0122 | J55: 28.6 | K55: 0 | L55: 0 | M55: 0.0337 | N55: 78.76 | O55: 0.0017 | P55: 4.02 | Q55: 0 | R55: 0 | S55: 0.1264 | T55: 295.48 | U55: 0.0043 | V55: 9.98 | W55: 1.2971 | X55: 3032.24 | Y55: 5370.03 | Z55: 1153.59
A56: P8102 | B56: Médico veterinário | C56: mês | D56: 12002 | E56: 0.7908 | F56: 9491.18 | G56: 0.0614 | H56: 736.74 | I56: 0.0021 | J56: 25.51 | K56: 0 | L56: 0 | M56: 0 | N56: 0 | O56: 0.0002 | P56: 2.26 | Q56: 0 | R56: 0 | S56: 0.0246 | T56: 295.48 | U56: 0.0008 | V56: 9.98 | W56: 0.88 | X56: 10561.16 | Y56: 22563.16 | Z56: 1069.98
A57: P8106 | B57: Meteorologista júnior | C57: mês | D57: 5253.81 | E57: 0.7933 | F57: 4167.84 | G57: 0.1402 | H57: 736.74 | I57: 0.0049 | J57: 25.51 | K57: 0 | L57: 0 | M57: 0 | N57: 0 | O57: 0.0005 | P57: 2.63 | Q57: 0 | R57: 0 | S57: 0.0562 | T57: 295.48 | U57: 0.0019 | V57: 9.98 | W57: 0.997 | X57: 5238.19 | Y57: 10491.99 | Z57: 1070.34
A58: P8107 | B58: Meteorologista pleno | C58: mês | D58: 7005.07 | E58: 0.7933 | F58: 5557.12 | G58: 0.1052 | H58: 736.74 | I58: 0.0036 | J58: 25.51 | K58: 0 | L58: 0 | M58: 0 | N58: 0 | O58: 0.0004 | P58: 2.63 | Q58: 0 | R58: 0 | S58: 0.0422 | T58: 295.48 | U58: 0.0014 | V58: 9.98 | W58: 0.9461 | X58: 6627.47 | Y58: 13632.54 | Z58: 1070.35
A59: P8108 | B59: Meteorologista sênior | C59: mês | D59: 11774.37 | E59: 0.7933 | F59: 9340.61 | G59: 0.0626 | H59: 736.74 | I59: 0.0022 | J59: 25.51 | K59: 0 | L59: 0 | M59: 0 | N59: 0 | O59: 0.0002 | P59: 2.63 | Q59: 0 | R59: 0 | S59: 0.0251 | T59: 295.48 | U59: 0.0008 | V59: 9.98 | W59: 0.8842 | X59: 10410.95 | Y59: 22185.32 | Z59: 1070.34
A60: P8112 | B60: Motorista de caminhão | C60: mês | D60: 2332.4 | E60: 0.8057 | F60: 1879.21 | G60: 0.3014 | H60: 702.89 | I60: 0.0133 | J60: 31.06 | K60: 0 | L60: 0 | M60: 0.0339 | N60: 79.09 | O60: 0.0018 | P60: 4.24 | Q60: 0 | R60: 0 | S60: 0.1267 | T60: 295.48 | U60: 0.0043 | V60: 9.98 | W60: 1.2871 | X60: 3001.96 | Y60: 5334.36 | Z60: 1122.75
A61: P8113 | B61: Motorista de veículo leve | C61: mês | D61: 2065.77 | E61: 0.8013 | F61: 1655.3 | G61: 0.3403 | H61: 702.89 | I61: 0.015 | J61: 31.06 | K61: 0 | L61: 0 | M61: 0.046 | N61: 95.09 | O61: 0.0019 | P61: 3.85 | Q61: 0 | R61: 0 | S61: 0.143 | T61: 295.48 | U61: 0.0048 | V61: 9.98 | W61: 1.3524 | X61: 2793.65 | Y61: 4859.42 | Z61: 1138.35
A62: P8117 | B62: Oceanógrafo júnior | C62: mês | D62: 4510.24 | E62: 0.803 | F62: 3621.72 | G62: 0.1633 | H62: 736.74 | I62: 0.0057 | J62: 25.51 | K62: 0 | L62: 0 | M62: 0 | N62: 0 | O62: 0.0008 | P62: 3.57 | Q62: 0 | R62: 0 | S62: 0.0655 | T62: 295.48 | U62: 0.0022 | V62: 9.98 | W62: 1.0405 | X62: 4693.01 | Y62: 9203.25 | Z62: 1071.29
A63: P8118 | B63: Oceanógrafo pleno | C63: mês | D63: 6013.65 | E63: 0.803 | F63: 4828.96 | G63: 0.1225 | H63: 736.74 | I63: 0.0042 | J63: 25.51 | K63: 0 | L63: 0 | M63: 0 | N63: 0 | O63: 0.0006 | P63: 3.57 | Q63: 0 | R63: 0 | S63: 0.0491 | T63: 295.48 | U63: 0.0017 | V63: 9.98 | W63: 0.9811 | X63: 5900.25 | Y63: 11913.9 | Z63: 1071.29
A64: P8119 | B64: Oceanógrafo sênior | C64: mês | D64: 10872.11 | E64: 0.803 | F64: 8730.3 | G64: 0.0678 | H64: 736.74 | I64: 0.0023 | J64: 25.51 | K64: 0 | L64: 0 | M64: 0 | N64: 0 | O64: 0.0003 | P64: 3.57 | Q64: 0 | R64: 0 | S64: 0.0272 | T64: 295.48 | U64: 0.0009 | V64: 9.98 | W64: 0.9015 | X64: 9801.59 | Y64: 20673.69 | Z64: 1071.28
A65: P8129 | B65: Pedagogo júnior | C65: mês | D65: 2507.29 | E65: 0.9238 | F65: 2316.24 | G65: 0.2938 | H65: 736.74 | I65: 0.0102 | J65: 25.51 | K65: 0 | L65: 0 | M65: 0.0274 | N65: 68.59 | O65: 0.0104 | P65: 26 | Q65: 0 | R65: 0 | S65: 0.1178 | T65: 295.48 | U65: 0.004 | V65: 9.98 | W65: 1.3874 | X65: 3478.55 | Y65: 5985.84 | Z65: 1162.31
A66: P8130 | B66: Pedagogo pleno | C66: mês | D66: 3343.06 | E66: 0.9238 | F66: 3088.31 | G66: 0.2204 | H66: 736.74 | I66: 0.0076 | J66: 25.51 | K66: 0 | L66: 0 | M66: 0.0055 | N66: 18.45 | O66: 0.0078 | P66: 26 | Q66: 0 | R66: 0 | S66: 0.0884 | T66: 295.48 | U66: 0.003 | V66: 9.98 | W66: 1.2565 | X66: 4200.48 | Y66: 7543.53 | Z66: 1112.16
A67: P8131 | B67: Pedagogo sênior | C67: mês | D67: 4715.72 | E67: 0.9238 | F67: 4356.38 | G67: 0.1562 | H67: 736.74 | I67: 0.0054 | J67: 25.51 | K67: 0 | L67: 0 | M67: 0 | N67: 0 | O67: 0.0055 | P67: 26 | Q67: 0 | R67: 0 | S67: 0.0627 | T67: 295.48 | U67: 0.0021 | V67: 9.98 | W67: 1.1557 | X67: 5450.1 | Y67: 10165.82 | Z67: 1093.72
A68: P8135 | B68: Secretária | C68: mês | D68: 2697.38 | E68: 0.7984 | F68: 2153.59 | G68: 0.2731 | H68: 736.74 | I68: 0 | J68: 0 | K68: 0 | L68: 0 | M68: 0.0212 | N68: 57.19 | O68: 0.0014 | P68: 3.87 | Q68: 0 | R68: 0 | S68: 0.1095 | T68: 295.48 | U68: 0.0037 | V68: 9.98 | W68: 1.2074 | X68: 3256.85 | Y68: 5954.23 | Z68: 1103.26
A69: P8139 | B69: Sondador | C69: mês | D69: 2017.39 | E69: 0.8004 | F69: 1614.72 | G69: 0.3652 | H69: 736.74 | I69: 0.0142 | J69: 28.6 | K69: 0 | L69: 0 | M69: 0.0486 | N69: 97.99 | O69: 0.0022 | P69: 4.51 | Q69: 0 | R69: 0 | S69: 0.1465 | T69: 295.48 | U69: 0.0049 | V69: 9.98 | W69: 1.382 | X69: 2788.02 | Y69: 4805.42 | Z69: 1173.31
A70: P8143 | B70: Técnico ambiental | C70: mês | D70: 2911.08 | E70: 0.8064 | F70: 2347.49 | G70: 0.2531 | H70: 736.74 | I70: 0.0098 | J70: 28.6 | K70: 0 | L70: 0 | M70: 0.0152 | N70: 44.37 | O70: 0.0014 | P70: 4.05 | Q70: 0 | R70: 0 | S70: 0.1015 | T70: 295.48 | U70: 0.0034 | V70: 9.98 | W70: 1.1909 | X70: 3466.71 | Y70: 6377.79 | Z70: =Y70-D70-F70 -> 1119.22
A71: P8147 | B71: Técnico de obras | C71: mês | D71: 3184.9 | E71: 0.8021 | F71: 2554.61 | G71: 0.2313 | H71: 736.74 | I71: 0.009 | J71: 28.6 | K71: 0 | L71: 0 | M71: 0.0088 | N71: 27.94 | O71: 0.0012 | P71: 3.8 | Q71: 0 | R71: 0 | S71: 0.0928 | T71: 295.48 | U71: 0.0031 | V71: 9.98 | W71: 1.1483 | X71: 3657.15 | Y71: 6842.04 | Z71: 1102.53
A72: P8151 | B72: Técnico de segurança do trabalho | C72: mês | D72: 4601.83 | E72: 0.8092 | F72: 3723.8 | G72: 0.1601 | H72: 736.74 | I72: 0.0062 | J72: 28.6 | K72: 0 | L72: 0 | M72: 0 | N72: 0 | O72: 0.001 | P72: 4.67 | Q72: 0 | R72: 0 | S72: 0.0642 | T72: 295.48 | U72: 0.0022 | V72: 9.98 | W72: 1.0429 | X72: 4799.28 | Y72: 9401.11 | Z72: 1075.48
A73: P8155 | B73: Técnico em geoprocessamento | C73: mês | D73: 2879.59 | E73: 0.7961 | F73: 2292.44 | G73: 0.2558 | H73: 736.74 | I73: 0.0099 | J73: 28.6 | K73: 0 | L73: 0 | M73: 0.0161 | N73: 46.26 | O73: 0.0012 | P73: 3.53 | Q73: 0 | R73: 0 | S73: 0.1026 | T73: 295.48 | U73: 0.0035 | V73: 9.98 | W73: 1.1853 | X73: 3413.04 | Y73: 6292.64 | Z73: 1120.61
A74: P8159 | B74: Técnico em informática - programador | C74: mês | D74: 4690.87 | E74: 0.8008 | F74: 3756.45 | G74: 0.1571 | H74: 736.74 | I74: 0 | J74: 0 | K74: 0 | L74: 0 | M74: 0 | N74: 0 | O74: 0.0007 | P74: 3.45 | Q74: 0 | R74: 0 | S74: 0.063 | T74: 295.48 | U74: 0.0021 | V74: 9.98 | W74: 1.0237 | X74: 4802.1 | Y74: 9492.98 | Z74: 1045.66
A75: P8163 | B75: Topógrafo | C75: mês | D75: 2428.57 | E75: 0.8062 | F75: 1957.92 | G75: 0.3034 | H75: 736.74 | I75: 0.0118 | J75: 28.6 | K75: 0 | L75: 0 | M75: 0.0302 | N75: 73.32 | O75: 0.0018 | P75: 4.39 | Q75: 0 | R75: 0 | S75: 0.1217 | T75: 295.48 | U75: 0.0041 | V75: 9.98 | W75: 1.2791 | X75: 3106.43 | Y75: 5535 | Z75: 1148.51
A76: P8167 | B76: Arquivista júnior | C76: mês | D76: 2411.93 | E76: 0.7996 | F76: 1928.58 | G76: 0.3055 | H76: 736.74 | I76: 0 | J76: 0 | K76: 0 | L76: 0 | M76: 0.0308 | N76: 74.32 | O76: 0.0013 | P76: 3.15 | Q76: 0 | R76: 0 | S76: 0.1225 | T76: 295.48 | U76: 0.0041 | V76: 9.98 | W76: 1.2638 | X76: 3048.25 | Y76: 5460.17 | Z76: 1119.66
A77: P8168 | B77: Arquivista pleno | C77: mês | D77: 3215.9 | E77: 0.7996 | F77: 2571.43 | G77: 0.2291 | H77: 736.74 | I77: 0 | J77: 0 | K77: 0 | L77: 0 | M77: 0.0081 | N77: 26.08 | O77: 0.001 | P77: 3.15 | Q77: 0 | R77: 0 | S77: 0.0919 | T77: 295.48 | U77: 0.0031 | V77: 9.98 | W77: 1.1328 | X77: 3642.87 | Y77: 6858.77 | Z77: 1071.44
A78: P8169 | B78: Arquivista sênior | C78: mês | D78: 5113.29 | E78: 0.7996 | F78: 4088.59 | G78: 0.1441 | H78: 736.74 | I78: 0 | J78: 0 | K78: 0 | L78: 0 | M78: 0 | N78: 0 | O78: 0.0006 | P78: 3.15 | Q78: 0 | R78: 0 | S78: 0.0578 | T78: 295.48 | U78: 0.002 | V78: 9.98 | W78: 1.004 | X78: 5133.95 | Y78: 10247.24 | Z78: 1045.36
A79: P8173 | B79: Administrador júnior | C79: mês | D79: 3341.1 | E79: 0.7974 | F79: 2664.19 | G79: 0.2205 | H79: 736.74 | I79: 0 | J79: 0 | K79: 0 | L79: 0 | M79: 0.0056 | N79: 18.57 | O79: 0.0011 | P79: 3.58 | Q79: 0 | R79: 0 | S79: 0.0884 | T79: 295.48 | U79: 0.003 | V79: 9.98 | W79: 1.116 | X79: 3728.54 | Y79: 7069.64 | Z79: 1064.35
A80: P8174 | B80: Administrador pleno | C80: mês | D80: 4454.8 | E80: 0.7974 | F80: 3552.26 | G80: 0.1654 | H80: 736.74 | I80: 0 | J80: 0 | K80: 0 | L80: 0 | M80: 0 | N80: 0 | O80: 0.0008 | P80: 3.58 | Q80: 0 | R80: 0 | S80: 0.0663 | T80: 295.48 | U80: 0.0022 | V80: 9.98 | W80: 1.0322 | X80: 4598.04 | Y80: 9052.84 | Z80: 1045.78
A81: P8175 | B81: Administrador sênior | C81: mês | D81: 7993.16 | E81: 0.7974 | F81: 6373.75 | G81: 0.0922 | H81: 736.74 | I81: 0 | J81: 0 | K81: 0 | L81: 0 | M81: 0 | N81: 0 | O81: 0.0004 | P81: 3.58 | Q81: 0 | R81: 0 | S81: 0.037 | T81: 295.48 | U81: 0.0012 | V81: 9.98 | W81: 0.9282 | X81: 7419.53 | Y81: 15412.69 | Z81: 1045.78
A82: P8180 | B82: Engenheiro agrimensor júnior | C82: mês | D82: 12002 | E82: 0.7984 | F82: 9582.4 | G82: 0.0614 | H82: 736.74 | I82: 0.0021 | J82: 25.51 | K82: 0 | L82: 0 | M82: 0 | N82: 0 | O82: 0.0004 | P82: 4.39 | Q82: 0 | R82: 0 | S82: 0.0246 | T82: 295.48 | U82: 0.0008 | V82: 9.98 | W82: 0.8877 | X82: 10654.5 | Y82: 22656.5 | Z82: 1072.1
A83: P8181 | B83: Engenheiro agrimensor pleno | C83: mês | D83: 12338.1 | E83: 0.7984 | F83: 9850.74 | G83: 0.0597 | H83: 736.74 | I83: 0.0021 | J83: 25.51 | K83: 0 | L83: 0 | M83: 0 | N83: 0 | O83: 0.0004 | P83: 4.39 | Q83: 0 | R83: 0 | S83: 0.0239 | T83: 295.48 | U83: 0.0008 | V83: 9.98 | W83: 0.8853 | X83: 10922.84 | Y83: 23260.94 | Z83: 1072.1
A84: P8182 | B84: Engenheiro agrimensor sênior | C84: mês | D84: 14173.3 | E84: 0.7984 | F84: 11315.96 | G84: 0.052 | H84: 736.74 | I84: 0.0018 | J84: 25.51 | K84: 0 | L84: 0 | M84: 0 | N84: 0 | O84: 0.0003 | P84: 4.39 | Q84: 0 | R84: 0 | S84: 0.0208 | T84: 295.48 | U84: 0.0007 | V84: 9.98 | W84: 0.874 | X84: 12388.07 | Y84: 26561.37 | Z84: 1072.11
A85: P8183 | B85: Geógrafo júnior | C85: mês | D85: 3904.44 | E85: 0.7962 | F85: 3108.72 | G85: 0.1887 | H85: 736.74 | I85: 0.0065 | J85: 25.51 | K85: 0 | L85: 0 | M85: 0 | N85: 0 | O85: 0.0008 | P85: 3.29 | Q85: 0 | R85: 0 | S85: 0.0757 | T85: 295.48 | U85: 0.0026 | V85: 9.98 | W85: 1.0705 | X85: 4179.72 | Y85: 8084.16 | Z85: 1071
A86: P8184 | B86: Geógrafo pleno | C86: mês | D86: 5205.92 | E86: 0.7962 | F86: 4144.96 | G86: 0.1415 | H86: 736.74 | I86: 0.0049 | J86: 25.51 | K86: 0 | L86: 0 | M86: 0 | N86: 0 | O86: 0.0006 | P86: 3.29 | Q86: 0 | R86: 0 | S86: 0.0568 | T86: 295.48 | U86: 0.0019 | V86: 9.98 | W86: 1.0019 | X86: 5215.96 | Y86: 10421.88 | Z86: 1071
A87: P8185 | B87: Geógrafo sênior | C87: mês | D87: 10039.58 | E87: 0.7962 | F87: 7993.51 | G87: 0.0734 | H87: 736.74 | I87: 0.0025 | J87: 25.51 | K87: 0 | L87: 0 | M87: 0 | N87: 0 | O87: 0.0003 | P87: 3.29 | Q87: 0 | R87: 0 | S87: 0.0294 | T87: 295.48 | U87: 0.001 | V87: 9.98 | W87: 0.9029 | X87: 9064.52 | Y87: 19104.1 | Z87: 1071.01
A88: P8186 | B88: Antropólogo júnior | C88: mês | D88: 3075.8 | E88: 0.8205 | F88: 2523.7 | G88: 0.2395 | H88: 736.74 | I88: 0.0083 | J88: 25.51 | K88: 0 | L88: 0 | M88: 0.0112 | N88: 34.48 | O88: 0.002 | P88: 6.14 | Q88: 0 | R88: 0 | S88: 0.0961 | T88: 295.48 | U88: 0.0032 | V88: 9.98 | W88: 1.1808 | X88: 3632.03 | Y88: 6707.84 | Z88: 1108.34
A89: P8187 | B89: Antropólogo pleno | C89: mês | D89: 4101.07 | E89: 0.8205 | F89: 3364.93 | G89: 0.1796 | H89: 736.74 | I89: 0.0062 | J89: 25.51 | K89: 0 | L89: 0 | M89: 0 | N89: 0 | O89: 0.0015 | P89: 6.14 | Q89: 0 | R89: 0 | S89: 0.072 | T89: 295.48 | U89: 0.0024 | V89: 9.98 | W89: 1.0823 | X89: 4438.78 | Y89: 8539.85 | Z89: 1073.85
A90: P8188 | B90: Antropólogo sênior | C90: mês | D90: 6246.53 | E90: 0.8205 | F90: 5125.28 | G90: 0.1179 | H90: 736.74 | I90: 0.0041 | J90: 25.51 | K90: 0 | L90: 0 | M90: 0 | N90: 0 | O90: 0.001 | P90: 6.14 | Q90: 0 | R90: 0 | S90: 0.0473 | T90: 295.48 | U90: 0.0016 | V90: 9.98 | W90: 0.9924 | X90: 6199.13 | Y90: 12445.66 | Z90: 1073.85
A91: P8189 | B91: Arqueólogo júnior | C91: mês | D91: 2815.27 | E91: 0.8089 | F91: 2277.27 | G91: 0.2617 | H91: 736.74 | I91: 0.0091 | J91: 25.51 | K91: 0 | L91: 0 | M91: 0.0178 | N91: 50.12 | O91: 0.0019 | P91: 5.28 | Q91: 0 | R91: 0 | S91: 0.105 | T91: 295.48 | U91: 0.0035 | V91: 9.98 | W91: 1.2078 | X91: 3400.38 | Y91: 6215.65 | Z91: 1123.11
A92: P8190 | B92: Arqueólogo pleno | C92: mês | D92: 3753.69 | E92: 0.8089 | F92: 3036.36 | G92: 0.1963 | H92: 736.74 | I92: 0.0068 | J92: 25.51 | K92: 0 | L92: 0 | M92: 0 | N92: 0 | O92: 0.0014 | P92: 5.28 | Q92: 0 | R92: 0 | S92: 0.0787 | T92: 295.48 | U92: 0.0027 | V92: 9.98 | W92: 1.0948 | X92: 4109.36 | Y92: 7863.04 | Z92: 1072.99
A93: P8191 | B93: Arqueólogo sênior | C93: mês | D93: 5706.15 | E93: 0.8089 | F93: 4615.71 | G93: 0.1291 | H93: 736.74 | I93: 0.0045 | J93: 25.51 | K93: 0 | L93: 0 | M93: 0 | N93: 0 | O93: 0.0009 | P93: 5.28 | Q93: 0 | R93: 0 | S93: 0.0518 | T93: 295.48 | U93: 0.0017 | V93: 9.98 | W93: 0.9969 | X93: 5688.71 | Y93: 11394.86 | Z93: 1073
A94: P8192 | B94: Historiador júnior | C94: mês | D94: 3885.3 | E94: 0.8367 | F94: 3250.83 | G94: 0.1896 | H94: 736.74 | I94: 0.0066 | J94: 25.51 | K94: 0 | L94: 0 | M94: 0 | N94: 0 | O94: 0.0018 | P94: 6.99 | Q94: 0 | R94: 0 | S94: 0.0761 | T94: 295.48 | U94: 0.0026 | V94: 9.98 | W94: 1.1133 | X94: 4325.53 | Y94: 8210.84 | Z94: 1074.71
A95: P8193 | B95: Historiador pleno | C95: mês | D95: 5180.4 | E95: 0.8367 | F95: 4334.44 | G95: 0.1422 | H95: 736.74 | I95: 0.0049 | J95: 25.51 | K95: 0 | L95: 0 | M95: 0 | N95: 0 | O95: 0.0013 | P95: 6.99 | Q95: 0 | R95: 0 | S95: 0.057 | T95: 295.48 | U95: 0.0019 | V95: 9.98 | W95: 1.0442 | X95: 5409.15 | Y95: 10589.55 | Z95: 1074.71
A96: P8194 | B96: Historiador sênior | C96: mês | D96: 8013.69 | E96: 0.8367 | F96: 6705.05 | G96: 0.0919 | H96: 736.74 | I96: 0.0032 | J96: 25.51 | K96: 0 | L96: 0 | M96: 0 | N96: 0 | O96: 0.0009 | P96: 6.99 | Q96: 0 | R96: 0 | S96: 0.0369 | T96: 295.48 | U96: 0.0012 | V96: 9.98 | W96: 0.9708 | X96: 7779.76 | Y96: 15793.45 | Z96: 1074.71
A97: P8195 | B97: Paleontólogo júnior | C97: mês | D97: 3075.8 | E97: 0.8205 | F97: 2523.7 | G97: 0.2395 | H97: 736.74 | I97: 0.0083 | J97: 25.51 | K97: 0 | L97: 0 | M97: 0.0112 | N97: 34.48 | O97: 0.002 | P97: 6.14 | Q97: 0 | R97: 0 | S97: 0.0961 | T97: 295.48 | U97: 0.0032 | V97: 9.98 | W97: 1.1808 | X97: 3632.03 | Y97: 6707.84 | Z97: 1108.34
A98: P8196 | B98: Paleontólogo pleno | C98: mês | D98: 4101.07 | E98: 0.8205 | F98: 3364.93 | G98: 0.1796 | H98: 736.74 | I98: 0.0062 | J98: 25.51 | K98: 0 | L98: 0 | M98: 0 | N98: 0 | O98: 0.0015 | P98: 6.14 | Q98: 0 | R98: 0 | S98: 0.072 | T98: 295.48 | U98: 0.0024 | V98: 9.98 | W98: 1.0823 | X98: 4438.78 | Y98: 8539.85 | Z98: 1073.85
A99: P8197 | B99: Paleontólogo sênior | C99: mês | D99: 6246.53 | E99: 0.8205 | F99: 5125.28 | G99: 0.1179 | H99: 736.74 | I99: 0.0041 | J99: 25.51 | K99: 0 | L99: 0 | M99: 0 | N99: 0 | O99: 0.001 | P99: 6.14 | Q99: 0 | R99: 0 | S99: 0.0473 | T99: 295.48 | U99: 0.0016 | V99: 9.98 | W99: 0.9924 | X99: 6199.13 | Y99: 12445.66 | Z99: 1073.85
A100: P8198 | B100: Sociólogo júnior | C100: mês | D100: 4027.98 | E100: 0.8389 | F100: 3379.07 | G100: 0.1829 | H100: 736.74 | I100: 0.0063 | J100: 25.51 | K100: 0 | L100: 0 | M100: 0 | N100: 0 | O100: 0.0018 | P100: 7.17 | Q100: 0 | R100: 0 | S100: 0.0734 | T100: 295.48 | U100: 0.0025 | V100: 9.98 | W100: 1.1058 | X100: 4453.96 | Y100: 8481.94 | Z100: 1074.89
A101: P8199 | B101: Sociólogo pleno | C101: mês | D101: 5370.64 | E101: 0.8389 | F101: 4505.43 | G101: 0.1372 | H101: 736.74 | I101: 0.0048 | J101: 25.51 | K101: 0 | L101: 0 | M101: 0 | N101: 0 | O101: 0.0013 | P101: 7.17 | Q101: 0 | R101: 0 | S101: 0.055 | T101: 295.48 | U101: 0.0019 | V101: 9.98 | W101: 1.039 | X101: 5580.31 | Y101: 10950.95 | Z101: 1074.88
A102: P8200 | B102: Sociólogo sênior | C102: mês | D102: 8040.47 | E102: 0.8389 | F102: 6745.15 | G102: 0.0916 | H102: 736.74 | I102: 0.0032 | J102: 25.51 | K102: 0 | L102: 0 | M102: 0 | N102: 0 | O102: 0.0009 | P102: 7.17 | Q102: 0 | R102: 0 | S102: 0.0367 | T102: 295.48 | U102: 0.0012 | V102: 9.98 | W102: 0.9726 | X102: 7820.04 | Y102: 15860.51 | Z102: 1074.89
A103: Profissionais horistas | Z103: =Y103-D103-F103 -> 0
A104: P8264 | B104: Motorista de veículo leve - horista | C104: h | D104: 9.39 | E104: 1.1316 | F104: 10.63 | G104: 0.4102 | H104: 3.85 | I104: 0.0181 | J104: 0.17 | K104: 0 | L104: 0 | M104: 0.0555 | N104: 0.52 | O104: 0.0022 | P104: 0.02 | Q104: 0 | R104: 0 | S104: 0.1724 | T104: 1.62 | U104: 0.0058 | V104: 0.05 | W104: 1.7959 | X104: 16.86 | Y104: 26.25 | Z104: =Y104-D104-F104 -> 6.23
A105: Fonte: FGV IBRE

Sheet Drone
A2: Cotações data 10/2024
A3: COTAÇÃO Software p/ o drone - Agisoft Metashape
A4: Fonte: Google shopping
M5: Cotação 1 | N5: Cotação 2 | O5: Cotação 3 | P5: Cotação 4 | Q5: Cotação 5
M6: 549 | N6: 399 | O6: 335
O8: CV= | P8: =STDEVA(M6:Q6)/AVERAGE(M6:Q6) -> 0.2568409459
O9: Média: | P9: =AVERAGE(M6:Q6) -> 427.6666667
O10: Mediana: | P10: =MEDIAN(M6:Q6) -> 399
O11: Menor: | P11: =SMALL(P9:P10,1) -> 399
A21: COTAÇÃO Drone
A22: Fonte: Google shopping
M24: Cotação 1 | N24: Cotação 2 | O24: Cotação 3 | P24: Cotação 4 | Q24: Cotação 5 | R24: Cotação 6
M25: 49990 | N25: 31384.5 | O25: 38691 | P25: 49990 | Q25: 31384.5 | R25: 35990
K26: CV= | L26: =STDEVA(M25:R25)/AVERAGE(M25:R25) -> 0.2158372051
K27: Média: | L27: =AVERAGE(M25:R25) -> 39571.66667
K28: Mediana: | L28: =MEDIAN(M25:R25) -> 37340.5
K29: Menor: | L29: =SMALL(L27:L28,1) -> 37340.5
M31: VALOR DE AQUISIÇÃO | N31: VALOR DA DEPRECIAÇÃO | R31: MANUTENÇÃO | T31: VALOR MENSAL TOTAL (R$)
N32: Tempo de Utilização (Anos) | O32: Meses p/Ano de Uso | P32: Percentual Residual (%) | Q32: Depreciação Mensal - R$ | R32: Percentual Anual (%) | S32: Valor Mensal (R$)
M33: =L29 -> 37340.5 | N33: 2 | O33: 12 | P33: 0.1 | Q33: =ROUND((M33*(100%-P33))/(N33*O33),2) -> 1400.27 | R33: 0.2 | S33: =ROUND((R33*M33)/12,2) -> 622.34 | T33: =S33+Q33 -> 2022.61
A51: Cotação | B51: Software Autodesk AutoCAD
M54: VALOR DE AQUISIÇÃO | N54: VALOR DA DEPRECIAÇÃO | R54: MANUTENÇÃO | T54: VALOR MENSAL TOTAL (R$)
N55: Tempo de Utilização (Anos) | O55: Meses p/Ano de Uso | P55: Percentual Residual (%) | Q55: Depreciação Mensal - R$ | R55: Percentual Anual (%) | S55: Valor Mensal (R$)
M56: 8545 | N56: 2 | O56: 12 | P56: 0.1 | Q56: =ROUND((M56*(100%-P56))/(N56*O56),2) -> 320.44 | R56: 0.2 | S56: =ROUND((R56*M56)/12,2) -> 142.42 | T56: =S56+Q56 -> 462.86
L69: TOTAL DO EQUIPAMENTO: | N69: =T56+T33+P11 -> 2884.47

Sheet Serv Graficos
A3: Serviços Gráficos
A5: Serviço | C5: Referencia | D5: Código | E5: Valor | H5: 1 Vol Impressão Rel Final
A6: Impressão colorida | C6: SETOP/COMPOSIÇÃO | D6: CO-2019 | E6: 1.8 | G6: Preto | H6: =C17*E7 -> 91.35
A7: Impressão preta | C7: SETOP/COMPOSIÇÃO | D7: CO-2017 | E7: 0.29 | G7: Colorida | H7: =D17*E6 -> 63
A8: Encadernação até 350 fls. | C8: EMBASA/COMPOSIÇÃO | D8: 30.02.30 / 30.02.27 | E8: =20+7.2 -> 27.2 | F8: Foi considerado a soma de 2 composições, com encadernação de 250 e 100 folhas | G8: Encader | H8: =E8 -> 27.2
A9: Encadernação até 50 fls. | C9: EMBASA/COMPOSIÇÃO | D9: 30.02.26 | E9: 6 | G9: Total | H9: =SUM(H6:H8) -> 181.55
A10: Encadernação até 100 fls. | C10: EMBASA/COMPOSIÇÃO | D10: 30.02.27 | E10: 7.2
A11: Impressão em A3 | C11: SETOP/COMPOSIÇÃO | D11: CO-2018 / CO-2018 | E11: =(4.33+0.83)/2 -> 2.58 | F11: Foi considerado o valor médio entre a impressão colorida e preta/branco | H11: 1 Rel A3
A12: Impressão em A1 | C12: - | D12: - | E12: =2*E11 -> 5.16 | F12: Foi considerado o dobro do valor da impressão A3 | G12: Impresão A3 | H12: =B18*E11 -> 645
A13: Impressão em A0 | C13: - | D13: - | E13: =2*E12 -> 10.32 | F13: Foi considerado o dobro do valor da impressão A1 | G13: Encader | H13: =E8 -> 27.2
G14: Total | H14: =SUM(H12:H13) -> 672.2
A15: RELATÓRIO FINAL
A16: Qtd Rel Final (Volumes) | B16: Qtd Pág por Volume | C16: Qtd Impressão Preta | D16: Qtd Impressão Color | E16: Custo Unitário Parcial
A17: 3 | B17: 350 | C17: =B17*0.9 -> 315 | D17: =B17*0.1 -> 35 | E17: =H9*A17 -> 544.65 | F17: Estimamos 90% do total de páginas de impressões pretas e 10% coloridas.
A18: Peça Gráfica - Impressão em A3 | B18: 250 | E18: =ROUND(((B18*E11)+E8),2) -> 672.2
A19: Peça Gráfica - Impressão em A1 | B19: 50 | E19: =ROUND(((B19*E12)+E8),2) -> 285.2
A20: Custo Unitário Rel Final | E20: =SUM(E17:E19) -> 1502.05
A23: MINUTA DO RELATÓRIO FINAL
A24: Qtd Rel Final (Volumes) | B24: Qtd Pág por Volume | C24: Qtd Impressão Preta | D24: Qtd Impressão Color | E24: Custo Unitário Parcial
A25: 3 | B25: 350 | C25: =B25*0.9 -> 315 | D25: =B25*0.1 -> 35 | E25: =H9*A25 -> 544.65
A26: Peça Gráfica - Impressão em A4 | B26: 350 | E26: =(E7*B26)+H8 -> 128.7
A28: Custo Unitário Rel Final | E28: =SUM(E25:E26) -> 673.35
A31: Descrição | B31: Qtd Pág por Volume | C31: Qtd Impressão Preta | D31: Qtd Impressão Color | E31: Custo Unitário Total
A32: Relatório Mensal | B32: 50 | C32: =B32*0.9 -> 45 | D32: =B32*0.1 -> 5 | E32: =H36 -> 28.05 | F32: Estimamos a quantidade de página por volume. | H32: 1 Rel Mensal | I32: 1 Rel Parcial
A33: Relatório Parcial | B33: 100 | C33: =B33*0.9 -> 90 | D33: =B33*0.1 -> 10 | E33: =I36 -> 51.3 | F33: Estimamos a quantidade de página por volume. | H33: =C32*E7 -> 13.05 | I33: =C33*E7 -> 26.1
A34: Minuta do Relatório Final | E34: =E28 -> 673.35 | H34: =D32*E6 -> 9 | I34: =D33*E6 -> 18
A35: Relatório Final | E35: =E20 -> 1502.05 | H35: =E9 -> 6 | I35: =E10 -> 7.2
G36: Total | H36: =SUM(H33:H35) -> 28.05 | I36: =SUM(I33:I35) -> 51.3
A38: OBS: A quantidade de páginas por volume foi estimada
A39: 1 - Relatório Mensal: Será considerado 01 Volume com uma quantidade estimada de 50 páginas.
A40: 2 - Relatório Parcial: Será considerado 01 Volumes com uma quantidade estimada de 100 páginas.
A41: 3 - Minuta do Relatório Final: Será considerado 03 Volumes com uma quantidade estimada de 350 páginas, cada, + 01 Volume de desenho em Folha A4, com estimativa de 350 páginas.
A42: 4 - Relatório Final: Será considerado 03 Volumes com uma quantidade estimada de 350 páginas, cada, + 01 Volume de desenho em Folha A3, com estimativa de 350 páginas.

Sheet CPU-VEICULO_PickUp
A5: Composição de Preços de Locação de Veículo tipo pick-up
B6: Data de atualização: | C6: 2024-01-22 | E6: CV | F6: Média | G6: Mediana | K6: CV | L6: Média | M6: Mediana | V6: CV | W6: Média | X6: Mediana
A7: CODEVASF | E7: =_xlfn.STDEV.S(E10:H10)/AVERAGE(E10:H10) -> 0.09266792266 | F7: =AVERAGE(E10:H10) -> 179935.5 | G7: =MEDIAN(E10:H10) -> 184702 | K7: =_xlfn.STDEV.S(L9:S9)/AVERAGE(L9:S9) -> 0.2095249415 | L7: =AVERAGE(L9:S9) -> 31.09571429 | M7: =MEDIAN(L9:S9) -> 30.16 | V7: =_xlfn.STDEV.S(W9:AD9)/AVERAGE(W9:AD9) -> 0.1324098854 | W7: =AVERAGE(W9:AD9) -> 430.6009375 | X7: =MEDIAN(W9:AD9) -> 437.31625
A8: OBS: Preço sem BDI e sem motorista BDI= | E8: Preço FIPE | J8: PRODUTO | K8: MENOR (MÉDIA, MEDIANA) | L8: COT. 1 | M8: COT. 2 | N8: COT. 3 | O8: COT. 4 | P8: COT. 5 | Q8: COT. 6 | R8: COT. 7 | S8: COT. 8 | U8: PRODUTO | V8: MENOR (MÉDIA, MEDIANA) | W8: COT. 1 | X8: COT. 2 | Y8: COT. 3 | Z8: COT. 4 | AA8: COT. 5 | AB8: COT. 6 | AC8: COT. 7 | AD8: COT. 8
A9: Veículo tipo pick-up, cabine dupla - 2.0 16V 4x4 diesel Aut. | E9: Toro Ultra 2.0 16V 4x4 TB Diesel Aut. | F9: Toro Freedom 2.0 16V 4x4 TB Diesel Aut. | G9: Toro Volcano 2.0 16V 4x4 TB Diesel Aut. | H9: Toro Ranch 2.0 16V 4x4 TB Diesel Aut. | J9: LUBRIFICANTE 5W30 | K9: =SMALL(L7:M7,1) -> 30.16 | L9: 32.27 | M9: 28.9 | N9: 30.16 | O9: 37.7 | P9: 39.99 | Q9: 20.25 | R9: 28.4 | U9: Pneu 225/65 R17 | V9: =SMALL(W7:X7,1) -> 430.6009375 | W9: =1661.85/4 -> 415.4625 | X9: =1940.9/4 -> 485.225 | Y9: 399.88 | Z9: 330.46 | AA9: 479.6 | AB9: 386.23 | AC9: 459.17 | AD9: 488.78
B10: Custo Mensal (R$): | C10: =C51 -> 7163.790168 | E10: 193030 | F10: 157308 | G10: 177450 | H10: 191954
B11: Custo Diária (R$): | C11: =C10/22 -> 325.6268258
B12: Custo Horário (R$): | C12: =C10/176 -> 40.70335323
A13: A | B13: Depreciação mensal do equipamento
A14: A1 | B14: Preço de Aquisição | C14: =SMALL(F7:G7,1) -> 179935.5
A15: A2 | B15: Tempo previsto de vida útil (meses) | C15: 36
A16: A3 | B16: Previsão de recup. Na venda do bem usado | C16: 0.4
A17: A4 | B17: Custo mensal [A1-(A3xA1)]/A2 | C17: =(C14-(C16*C14))/C15 -> 2998.925
A18: B | B18: Juros pelo Capital empregado
A19: B1 | B19: Taxa mensal de Juros * | C19: =POWER(1+C56,1/12)-1 -> 0.009300823619
A20: B2 | B20: Juros s/depreciação/aluguel (B1xA4) | C20: =C19*C17 -> 27.89247247
A21: C | B21: Conservação e manutenção ** | C21: 0.75
A22: C1 | B22: Taxa de gastos s/a deprec. Inc. seguros (%) | C22: =C21 -> 0.75 | AF22: PREÇO DO DIESEL | AG22: 5.98
A23: C2 | B23: Incidência mensal (C1xA4) | C23: =C22*C17 -> 2249.19375 | AF23: https://precos.petrobras.com.br/sele%C3%A7%C3%A3o-de-estados-diesel
A24: D | B24: Combustível
A25: D1 | B25: Média mensal de quilômetro por veículo | C25: =130*22 -> 2860
A26: D2 | B26: Preço do litro de combustível | C26: =AG22 -> 5.98
A27: D3 | B27: Quilômetros rodados com um litro combustivel | C27: 10
A28: D4 | B28: Combustivel (D1/D3)*D2 | C28: =(C25/C27)*C26 -> 1710.28
A29: E | B29: Lubrificantes
A30: E1 | B30: Quilometragem do Contrato (D1*12) | C30: =C25*36 -> 102960
A31: E2 | B31: Franquia por troca de óleo (km) | C31: 10000
A32: E3 | B32: Preço do litro de óleo | C32: =K9 -> 30.16
A33: E4 | B33: Quantidade de litros de óleo por troca | C33: 5
A34: E5 | B34: Quantidade de dias do Contrato | C34: =365*3 -> 1095
A35: E6 | B35: Lubrificantes E = (E1*E3*E4*30)/E2*E5 | C35: =(C30*C32*C33*30)/(C31*C34) -> 42.53799452
A36: F | B36: Pneus
A37: F1 | B37: Quilometragem do Contrato | C37: =C30 -> 102960
A38: F2 | B38: Vida do Pneu em quilômetros | C38: 45000
A39: F3 | B39: Quantidade de pneus | C39: 5
A40: F4 | B40: Preço do Pneu | C40: =V9 -> 430.6009375
A41: F5 | B41: Quantidade de dias do contrato | C41: =C34 -> 1095
A42: F6 | B42: Pneus = (F1*F3*F4*30)/(F2*F5) | C42: =(C37*C39*C40*30)/(C38*C41) -> 134.9609514
A43: G | B43: Motorista
A44: G1 | B44: Salário com encargos sociais | C44: 0 | J44: https://www.google.com/search?q=lubrificante+5w30&sxsrf=AJOqlzUM514L6uswJHb1jIGpGgXchTtV5A:1677092590843&source=lnms&tbm=shop&sa=X&sqi=2&ved=
A45: H | B45: Custo Mensal
B46: Sem Motorista (A4+B2+C2+D4+E6+F6) | C46: =C17+C20+C23+C28+C35+C42 -> 7163.790168
B47: Com Motorista (A4+B2+C2+D4+E6+F6+G1) | C47: =C17+C20+C23+C28+C35+C42+C44 -> 7163.790168
A48: I | B48: Custo Direto p/ km Rodado
B49: Sem Motorista | C49: =C46/C25 -> 2.504821737
B50: Com Motorista | C50: =C47/C25 -> 2.504821737
A51: J | B51: Preço cobrado sem BDI | C51: =C46*(1+C8) -> 7163.790168
A52: J1 | B52: Sem Motorista | C52: =C51 -> 7163.790168
A53: J2 | B53: Com Motorista | C53: =C47 -> 7163.790168 | T53: https://www.google.com/search?q=pneu+225%2F65+R17&sa=X&biw=1600&bih=757&tbm=shop&sxsrf=AJOqlzWsb-d4PS1_OUOEhKmRc2RbtSg3RQ%3A1677092596279&ei=9Gb2Y9K5ENTa5OUPvLykGA&ved=0ahUKEwjSg9Pj6Kn9AhVULbkGHTweCQMQ4dUDCAg&uact=5&oq=pneu+225%2F65+R17&gs_lcp=Cgtwcm9kdWN0cy1jYxADMgsIABCABBCxAxCDATIFCAAQgAQyBwgAEIAEEAoyBwgAEIAEEAoyBwgAEIAEEAoyBwgAEIAEEAoyBwgAEIAEEAoyBQgAEIAEMgcIABCABBAKMgcIABCABBAKOgQIIxAnOgQIABBDSgQIQRgAUABYoTJgqUBoAHAAeACAAdIFiAGUKZIBDTAuMi42LjIuMi4yLjGYAQCgAQHAAQE&sclient=products-cc
B55: OBSERVAÇÕES:
A56: * | B56: Calculado com base na taxa SELIC JANEIRO/2024: | C56: 0.1175
B57: Taxa de Juros Selic — Português (Brasil) (www.gov.br)
A58: ** | B58: Conservação e manutenção - é calculado com o uso de um coeficiente multiplicador "k", conforme tabela abaixo, sobre a
B59: depreciação mensal do equipamento (Item A da planilha de composição de preços). Os valores de K são fornecidos por
B60: fabricantes.
B61: Metodologia conforme a bibliografia "Como Preparar Orçamentos de Obras", 3 edição, Aldo Dórea Mattos, 2019.

Sheet CPU-VEICULO_Leve
A2: Composição de Preços de Locação de Veículos
B3: 2023-08-23 | C3: Data de atualização: | D3: 2024-01-22 | F3: CV | G3: Média | H3: Mediana | L3: CV | M3: Média | N3: Mediana | X3: CV | Y3: Média | Z3: Mediana
A4: CODEVASF | F4: =_xlfn.STDEV.S(F7:I7)/AVERAGE(F7:I7) -> 0.1377199342 | G4: =AVERAGE(F7:I7) -> 71853.75 | H4: =MEDIAN(F7:I7) -> 71738 | L4: =_xlfn.STDEV.S(M6:U6)/AVERAGE(M6:U6) -> 0.1324027208 | M4: =AVERAGE(M6:U6) -> 29.67888889 | N4: =MEDIAN(M6:U6) -> 28.9 | X4: =_xlfn.STDEV.S(Y6:AG6)/AVERAGE(Y6:AG6) -> 0.159968681 | Y4: =AVERAGE(Y6:AG6) -> 293.4627778 | Z4: =MEDIAN(Y6:AG6) -> 289.99
A5: OBS: Preço sem BDI e sem motorista BDI= | F5: Preço FIPE | K5: PRODUTO | L5: MENOR | M5: COT. 1 | N5: COT. 2 | O5: COT. 3 | P5: COT. 4 | Q5: COT. 5 | R5: COT. 6 | S5: COT. 7 | T5: COT. 8 | U5: COT. 9 | W5: PRODUTO | X5: MENOR | Y5: COT. 1 | Z5: COT. 2 | AA5: COT. 3 | AB5: COT. 4 | AC5: COT. 5 | AD5: COT. 6 | AE5: COT. 7 | AF5: COT. 8 | AG5: COT. 9
A6: Veículo Leve 1.0 T. Flex 12V 5p | F6: Renault Kwid Zen 1.0 | G6: Hyndai HB20 Sense 1.0 | H6: ONIX HATCH LT 1.0 12V Flex 5p Mec. | I6: MOBI TREKKING 1.0 Flex 5p. | K6: LUBRIFICANTE 15W40 | L6: =SMALL(M4:N4,1) -> 28.9 | M6: 26.12 | N6: 34.5 | O6: 23.28 | P6: 28 | Q6: 34.9 | R6: 33.45 | S6: 28.35 | T6: 28.9 | U6: 29.61 | W6: Pneu 185/65 R14 | X6: =SMALL(Y4:Z4,1) -> 289.99 | Y6: 369.9 | Z6: =1440.2/4 -> 360.05 | AA6: 229 | AB6: 254.15 | AC6: =1238.72/4 -> 309.68 | AD6: 263.2 | AE6: 289.99 | AF6: 293.23 | AG6: =1087.86/4 -> 271.965
C7: Custo Mensal (R$): | D7: =D48 -> 3358.807213 | F7: 60247 | G7: 74811 | H7: 83692 | I7: 68665
C8: Custo Diário (R$): | D8: =D7/30 -> 111.9602404
C9: Custo Horário (R$): | D9: =D7/176 -> 19.08413189
A10: A | C10: Depreciação mensal do equipamento
A11: A1 | C11: Preço de Aquisição | D11: =SMALL(G4:H4,1) -> 71738
A12: A2 | C12: Tempo previsto de vida útil (meses) | D12: 36
A13: A3 | C13: Previsão de recup. Na venda do bem usado | D13: 0.4
A14: A4 | C14: Custo mensal [A1-(A3xA1)]/A2 | D14: =(D11-(D13*D11))/D12 -> 1195.633333
A15: B | C15: Juros pelo Capital empregado
A16: B1 | C16: Taxa mensal de Juros * | D16: =POWER(1+D53,1/12)-1 -> 0.009300823619
A17: B2 | C17: Juros s/depreciação/aluguel (B1xA4) | D17: =D16*D14 -> 11.12037475
A18: C | C18: Conservação e manutenção ** | D18: 0.75
A19: C1 | C19: Taxa de gastos s/a deprec. Inc. seguros (%) | D19: =D18 -> 0.75
A20: C2 | C20: Incidência mensal (C1xA4) | D20: =D19*D14 -> 896.725
A21: D | C21: Combustível
A22: D1 | C22: Média mensal de quilômetro por veículo | D22: =130*22 -> 2860
A23: D2 | C23: Preço do litro de combustível | D23: =G83 -> 5.58
A24: D3 | C24: Quilômetros rodados com um litro combustivel | D24: =(12.8+13.3+15.3+15)/4 -> 14.1
A25: D4 | C25: Combustivel (D1/D3)*D2 | D25: =(D22/D24)*D23 -> 1131.829787
A26: E | C26: Lubrificantes
A27: E1 | C27: Quilometragem do Contrato (D1*12) | D27: =D22*36 -> 102960
A28: E2 | C28: Franquia por troca de óleo (km) | D28: 10000
A29: E3 | C29: Preço do litro de óleo | D29: =L6 -> 28.9
A30: E4 | C30: Quantidade de litros de óleo por troca | D30: 4
A31: E5 | C31: Quantidade de dias do Contrato | D31: =365*3 -> 1095
A32: E6 | C32: Lubrificantes E = (E1*E3*E4*30)/E2*E5 | D32: =(D27*D29*D30*30)/(D28*D31) -> 32.60870137
A33: F | C33: Pneus
A34: F1 | C34: Quilometragem do Contrato | D34: =D27 -> 102960
A35: F2 | C35: Vida do Pneu em quilômetros | D35: 45000
A36: F3 | C36: Quantidade de pneus | D36: 5
A37: F4 | C37: Preço do Pneu | D37: =X6 -> 289.99
A38: F5 | C38: Quantidade de dias do contrato | D38: =D31 -> 1095 | K38: https://www.google.com/search?q=lubrificante+15w40+1l&sa=X&biw=1600&bih=757&tbm=shop&sxsrf=AJOqlzUezMM_9i0M4NKjKqAMycLuOygp_g%3A1677158931166&ei=E2r3Y5e2CcH31sQPsK67CA&ved=0ahUKEwjXi8vy36v9AhXBu5UCHTDXDgEQ4dUDCAg&uact=5&oq=lubrificante+15w40+1l&gs_lcp=Cgtwcm9kdWN0cy1jYxADMgsIABAWEB4Q8QQQGDoICAAQgAQQsAM6CQgAEAcQHhCwAzoJCAAQCBAeELADOgkIABAeELADEBg6DggAEAUQHhDxBBCwAxAYOgUIABCABDoGCAAQFhAeOggIABAWEB4QGEoECEEYAVDeBFi3DWD0D2gBcAB4AIABpQWIAZAIkgEHMy0xLjAuMZgBAKABAcgBCsABAQ&sclient=products-cc
A39: F6 | C39: Pneus = (F1*F3*F4*30)/(F2*F5) | D39: =(D34*D36*D37*30)/(D35*D38) -> 90.89001644
A40: G | C40: Motorista
A41: G1 | C41: Salário com encargos sociais | D41: 0
A42: H | C42: Custo Mensal | V42: https://www.google.com/search?q=Pneu+185%2F65+R14&sa=X&hl=pt-BR&biw=1600&bih=757&tbm=shop&sxsrf=AJOqlzVJW-LYM1ZPHImwhsD-4UwyAvTluQ%3A1677158863331&ei=z2n3Y-uxE-zT1sQP0r-OmAs&ved=0ahUKEwir1Z7S36v9AhXsqZUCHdKfA7MQ4dUDCAg&uact=5&oq=Pneu+185%2F65+R14&gs_lcp=Cgtwcm9kdWN0cy1jYxADMgsIABCABBCxAxCDATIFCAAQgAQyBQgAEIAEMgUIABCABDIFCAAQgAQyBQgAEIAEMgUIABCABDIFCAAQgAQyBQgAEIAEMgUIABCABEoECEEYAFD5A1jGCWC1EGgAcAB4AIABrQmIAdcbkgEHNS0yLjAuMpgBAKABAcABAQ&sclient=products-cc
C43: Sem Motorista (A4+B2+C2+D4+E6+F6) | D43: =D14+D17+D20+D25+D32+D39 -> 3358.807213
C44: Com Motorista (A4+B2+C2+D4+E6+F6+G1) | D44: =D14+D17+D20+D25+D32+D39+D41 -> 3358.807213
A45: I | C45: Custo Direto p/ km Rodado
C46: Sem Motorista | D46: =D43/D22 -> 1.174408116
C47: Com Motorista | D47: =D44/D22 -> 1.174408116
A48: J | C48: Preço cobrado sem BDI | D48: =D43*(1+D5) -> 3358.807213
A49: J1 | C49: Sem Motorista | D49: =D48 -> 3358.807213
A50: J2 | C50: Com Motorista | D50: =D44 -> 3358.807213
A53: * | C53: Calculado com base na taxa SELIC JANEIRO/2024: | D53: 0.1175
C54: SELIC AGOSTO / 2022 - Taxa de Juros Selic — Português (Brasil) (www.gov.br)
A56: ** | C56: Conservação e manutenção - é calculado com o uso de um coeficiente multiplicador "k", conforme tabela abaixo, sobre a
C57: depreciação mensal do equipamento (Item A da planilha de composição de preços). Os valores de K são fornecidos por
C58: fabricantes.
C59: Metodologia conforme a bibliografia "Como Preparar Orçamentos de Obras", 3 edição, Aldo Dórea Mattos, 2019.
F83: PREÇO DA GASOLINA | G83: 5.58
F85: https://precos.petrobras.com.br/sele%C3%A7%C3%A3o-de-estados-gasolina

Sheet CPU HOSPEDAGEM
B2: Engenharia Consultiva da Codevasf
B3: CPU - HOSPEDAGEM EQUIPE DE CAMPO (4 PESSOAS/MÊS) | D3: Código/Referencia
B4: ALUGUEL | C4: 3074.56 | D4: F020003334/EMBASA insumo
B5: Aquisição de Mobiliário | C5: =42.41*C16 -> 169.64 | D5: B8954/DNIT
B6: Material de limpeza e diarista | C6: =125.8+(123*8) -> 1109.8 | D6: 10563/ORSE - E200300131/EMBASA
B7: manutenção da casa alugada - Serviços Gerais/Vigia | C7: 2841.56 | D7: 41096/SINAPI
B8: Energia | C8: 180 | D8: 10555/ORSE
B9: Água | C9: 394.99 | D9: 10554/ORSE
B10: telefone/Internet | C10: =154.99+89 -> 243.99 | D10: 10557/10558/ORSE
B11: IPTU (mês) | C11: =(C4*0.5)/12 -> 128.1066667
B13: Custo Mensal: | C13: =SUM(C4:C12) -> 8142.646667
B14: Custo Mensal por pessoa: | C14: =C13/C16 -> 2035.661667
B15: Custo diário por pessoa: | C15: =C14/22 -> 92.53007576
B16: número de pessoas: | C16: 4
B17: Alimentação: | C17: 100.59 | D17: Tabela Diária Codevasf 2024
B19: Diária Total (alimentação + hospedagem): | C19: =C15+C17 -> 193.1200758

Sheet COT. VANT (hidden)
A2: COTAÇÃO ORÇAMENTÁRIA DE LEVANTAMENTO PLANIALTIMÉTRICO POR MEIO DE VANT PARA ÁREA NA CIDADE DE PINDARÉ-MIRIM-MA
A3: MÊS/ANO DE REFERÊNCIA | B3: ÁREA DO PROJETO [ha] | C3: EMPRESA | D3: LOCALIDADE | E3: WEBSITE | F3: CONTATO | G3: AVALIAÇÃO TÉCNICA DA PROPOSTA | H3: PREÇO | I3: PREÇO UNITÁRIO | J3: RELAÇÃO CUSTO-BENEFÍCIO
A4: 2022-09-01 | B4: 50 | C4: DRONES SOLUTION | D4: SALVADOR-BA | E4: http://www.dronessolution.com.br/ | F4: contato@dronessolution.com.br | G4: SATISFATÓRIA | H4: 9800 | I4: =(H4/B4) -> 196 | J4: A
A5: 2022-09-01 | B5: 50 | C5: ERG | D5: BELO HORIZONTE-MG | E5: http://www.ergbh.com.br/ | F5: comercial@ergbh.com.br | G5: SATISFATÓRIA | H5: 13240.5 | I5: =(H5/B5) -> 264.81 | J5: B
A6: 2022-09-01 | B6: 50 | C6: CEPEMAR | D6: VITÓRIA-ES | E6: http://www.cepemar.com.br/ | F6: comercial@cepemar.com.br | G6: SATISFATÓRIA | H6: 63000 | I6: 1260 | J6: C
A8: Observações | B8: 1. Na cotação acima já estão iclusos: Planejamento Aerotogramétrico, Voo Aerotoforamétrico, Apoio de Campo, Aerotriangulação, Restituição, MDT, MDS, Ortofotos, Edição/Revisão e Entrega Final. | G8: CV com todos valores: | H8: =STDEVA(H4:H6)/AVERAGE(H4:H6) -> 1.038054932
B9: 2. INCONCLUSIVA: não apresentou o orçamento de forma detalhada. | G9: CV tirando o maior valor: | H9: =STDEVA(H4:H5)/AVERAGE(H4:H5) -> 0.2111760492
B10: 3. SATISFATÓRIA: apresentou, no mínimo, os requisitos básicos de um orçamento. | G10: Média tirando o maior valor: | H10: =AVERAGE(H4:H5) -> 11520.25 | I10: Valor para a área de 65ha
B11: 4-Para o valor do serviço de Vant, considerou-se a média tirando o maior valor das cotações recebidas, pois o CV (coeficiente de variação) está muito elevado com as 3 cotaçoes.
B12: 5-As cotações recebidas foram utilizadas para o serviço de levantamento do Ramal do Manga no Amapá, referente a um trecho de 6,5km de rodovia, com área total estimadade de 65ha.
B13: Dessa forma, para a cotação representativa deste serviço, realizou-se a parametrização proporcional a área de estudo do serviço a ser realizado.
B15: Portanto:
C16: =I10 -> Valor para a área de 65ha | D16: =H10 -> 11520.25
C17: Valor unitário para a área de 1ha | D17: =D16/65 -> 177.2346154
